{"text_format":"1","workbook":"xlsx","n_sheets":11,"sheets":["Table of Contents","Input Sheet","Device Calculator","Schematic Checklist","Layout Checklist","Part Data","MSEL","Std. R and C Values","Extra","About","Help"],"not_rendered":{"charts":3,"images":4,"macros":1,"external_links":0,"defined_names":180,"comments":2,"pivot_tables":0},"unopened":[],"bounds":{"document_bytes":16777216,"sheet_cells":100000,"rows_first":2000,"rows_last":500,"rows_between":2000,"halvings":0,"cell_chars":16384,"cell_head_chars":4096},"cells_cut":0,"cells_raw":0,"read":"whole","date_system":"1900"}

{"sheet":"Table of Contents","index":0,"n_rows":18,"n_cols":6,"rows_kept":18,"cut":false,"hidden":false,"merged":[[7,5,7,18],[16,5,16,18],[17,5,17,18],[5,5,5,6],[3,1,3,18],[9,5,9,18],[11,5,11,18],[13,5,13,18],[15,1,15,3],[17,1,17,3],[11,1,11,3],[13,1,13,3],[5,1,5,3],[9,1,9,3],[7,1,7,3]]}
[]
[]
[]
[null,"Table of Contents"]
[]
[null,"Worksheets",null,null,null,"Description"]
[]
[null,"Input Sheet",null,null,null,"This sheet contains simplified input for checking component values using the macros"]
[]
[null,"Device Calculator",null,null,null,"This sheet is where all calculations are performed. It can be used independently to select or verify component values."]
[]
[null,"Schematic Checklist"]
[]
[null,"Layout Checklist"]
[]
[null,"About"]
[]
[null,"Help"]

{"sheet":"Input Sheet","index":1,"n_rows":63,"n_cols":10,"rows_kept":63,"cut":false,"hidden":false,"merged":[]}
[null,null,null,null,null,null,null,null,"Table of Contents"]
[]
[]
[null,"Input Sheet",null,null,null,null,"*Selected*"]
[null,"Parameter","Units","Type","Default","Design Example","Design 1","end"]
[null,"Rail Name",null,"Req",null,"TPS54KB20EVM (U2)",null,null,null,"Macro Directions:"]
[null,{"$f":"'Device Calculator'!B9","v":"Part Number"},null,"Req",null,"TPS54KB20"]
[null,{"$f":"'Device Calculator'!B30","v":"Vin_min"},"V","Opt","Vin_typ*0.8",4.5,null,null,null,"Check/Calculate Selected Column"]
[null,{"$f":"'Device Calculator'!B31","v":"Vin_typ"},"V","Req",null,12,null,null,null,"Select any cell in the column corresponding to the design you want to check."]
[null,{"$f":"'Device Calculator'!B32","v":"Vin_max"},"V","Opt","Vin_typ*1.1",16,null,null,null,"Click on \"Check/Calculate Selected Column\" to send the input values to the Device Calculator worksheet"]
[null,{"$f":"'Device Calculator'!B33","v":"Vout"},"V","Req",null,3.3,null,null,null,"The calculated results from the Device Calculator are then pulled back to this sheet for component value verification."]
[null,{"$f":"'Device Calculator'!B34","v":"Iout"},"A","Opt","Iout_max_IC",25]
[null,{"$f":"'Device Calculator'!B69","v":"dVout_ripple_perc"},null,"Opt",0.01,0.01,null,null,null,"Insert New Design"]
[null,{"$f":"'Device Calculator'!B68","v":"dVout_trans_perc"},null,"Opt",0.04,0.03,null,null,null,"Click on “Insert New Design” to add another column for checking a different design."]
[null,{"$f":"'Device Calculator'!B67","v":"Iout_step"},"A","Opt","Iout*0.5",10,null,null,null,"To delete a design that is no longer needed, right-click on the column letter and select “delete.”"]
[null,{"$f":"'Device Calculator'!B104","v":"RMSEL"},null,"Req","R_MSEL_rec",86.6]
[null,{"$f":"'Device Calculator'!B105","v":"fsw_select"},"kHz","Calc",null,800]
[null,{"$f":"'Device Calculator'!B106","v":"LL_mode_select"},null,"Calc",null,"Skip-mode",null,null,null,"Pull Values from Calculator Sheet"]
[null,{"$f":"'Device Calculator'!B107","v":"RAMP_select"},null,"Calc",null,"RAMP1",null,null,null,"The DeviceCalculator worksheet provides additional details to aid in the design process."]
[null,{"$f":"'Device Calculator'!B42","v":"Kind"},null,"Opt",0.3,0.3,null,null,null,"Updates to the design can be made in the DeviceCalculator sheet."]
[null,{"$f":"'Device Calculator'!B47","v":"Lout"},"µH","Opt","Lout_rec",0.47,null,null,null,"After making updates, click on \"Pull Values from Calculator Sheet\" to use the updated values on the Device Calculator sheet and verify them."]
[null,{"$f":"'Device Calculator'!B48","v":"DCR"},"mΩ","Opt","Rdson_ls",1.1000000000000001]
[null,{"$f":"'Device Calculator'!B49","v":"Tol_Lout"},null,"Opt",0.2,0.2,null,null,null,"Check/Calculate All Columns"]
[null,{"$f":"'Device Calculator'!B60","v":"RILIM"},"kΩ","Opt","RILIM_NSV",4.32,null,null,null,"This option runs the “Check/Calculate Selected Column” process on all designs."]
[null,{"$f":"'Device Calculator'!B62","v":"Iout_lim_min"},"A","Calc",null,28.670212765957448]
[null,{"$f":"'Device Calculator'!B84","v":"N_cer"},null,"Opt",1,7]
[null,{"$f":"'Device Calculator'!B81","v":"Cout_single_cer"},"µF","Opt","Cout_min/0.8",22]
[null,{"$f":"'Device Calculator'!B83","v":"ESR_single_cer"},"mΩ","Opt",1,3]
[null,{"$f":"'Device Calculator'!B82","v":"Cer_derating"},null,"Opt",0.8,0.57999999999999996]
[null,{"$f":"'Device Calculator'!B90","v":"N_bulk"},null,"Opt",0,2]
[null,{"$f":"'Device Calculator'!B87","v":"Cout_single_bulk"},"µF","Opt",0.1,220]
[null,{"$f":"'Device Calculator'!B89","v":"ESR_single_bulk"},"mΩ","Opt",1,7]
[null,{"$f":"'Device Calculator'!B88","v":"Bulk_derating"},null,"Opt",1,1]
[null,{"$f":"'Device Calculator'!B94","v":"Vout_undershoot"},"mV","Calc",null,78.274969559155792]
[null,{"$f":"'Device Calculator'!B95","v":"Vout_overshoot"},"mV","Calc",null,13.453510392979904]
[null,{"$f":"'Device Calculator'!B97","v":"Vout_ripple"},"mV","Calc",null,12.023620642339878]
[null,{"$f":"'Device Calculator'!B113","v":"Vin_ripple_perc"},null,"Opt",0.04,0.04]
[null,{"$f":"'Device Calculator'!B117","v":"Cin_cer"},"µF","Opt","Cin_min/0.5",60]
[null,{"$f":"'Device Calculator'!B118","v":"Cin_derating"},null,"Opt",0.5,0.5]
[null,{"$f":"'Device Calculator'!B120","v":"Vin_ripple"},"mV","Calc",null,101.85185185185188]
[null,{"$f":"'Device Calculator'!B124","v":"Rfb_b"},"kΩ","Opt","Rfb_b_rec",3.01]
[null,{"$f":"'Device Calculator'!B127","v":"Rfb_t"},"kΩ","Opt","Rfb_t_NSV",8.06]
[null,{"$f":"'Device Calculator'!B128","v":"Vout_calc"},"V","Calc",null,3.3099667774086385]
[null,{"$f":"'Device Calculator'!B133","v":"Cff"},"pF","Opt","Cff_NSV",120]
[null,{"$f":"'Device Calculator'!B138","v":"Css"},"nF","Opt",22,39]
[null,{"$f":"'Device Calculator'!B139","v":"Tss"},"ms","Calc",null,0.97500000000000009]
[null,{"$f":"'Device Calculator'!B143","v":"Ren_b"},"kΩ","Opt",0,100]
[null,{"$f":"'Device Calculator'!B147","v":"Ren_t"},"kΩ","Opt",0,200]
[null,{"$f":"'Device Calculator'!B148","v":"Vstart_typ"},"kΩ","Calc",null,3.84]
[null,{"$f":"'Device Calculator'!B149","v":"Vstop_typ"},"kΩ","Calc",null,3.1999999999999997]
[null,{"$f":"'Device Calculator'!B157","v":"Cvcc"},"µF","Opt","Cvcc_rec",1]
[null,{"$f":"'Device Calculator'!B159","v":"Cboot"},"µF","Opt","Cboot_rec",0.1]
[null,{"$f":"'Device Calculator'!B161","v":"Rpg"},"kΩ","Opt","Rpg_rec",10]
[null,"RMSEL_check",null,"Check",null,"Pass"]
[null,"Lout_check",null,"Check",null,"Pass"]
[null,"RILIM_check",null,"Check",null,"Pass"]
[null,"Cout_check",null,"Check",null,"Pass"]
[null,"Stability_check",null,"Check",null,"Pass"]
[null,"Cin_check",null,"Check",null,"Pass"]
[null,"FB_network_check",null,"Check",null,"Pass"]
[null,"EN_divider_check",null,"Check",null,"Pass"]
[null,"Vin_check",null,"Check",null,"Pass"]
[null,"Cvcc_Cboot_Rpg_check",null,"Check",null,"Pass"]

{"sheet":"Device Calculator","index":2,"n_rows":161,"n_cols":13,"rows_kept":161,"cut":false,"hidden":false,"merged":[[154,1,154,7],[150,1,150,7],[32,9,33,11],[139,1,139,7],[121,1,121,7],[134,1,134,7],[40,1,40,7],[65,1,65,7],[64,1,64,7],[54,1,54,7],[110,1,110,7],[111,1,111,7],[34,1,34,7],[100,1,100,7],[101,9,101,10],[3,1,3,7],[39,1,39,7],[4,1,6,1],[4,2,6,2],[4,3,6,3],[4,4,6,4],[4,5,6,5],[4,6,6,6],[4,7,6,7],[7,1,7,7],[28,1,28,7]]}
[null,null,null,null,null,null,null,"Table of Contents"]
[]
[]
[null,"Device Calculator",null,null,null,null,null,null,null,"Key"]
[null,"Parameter","Input","Recommended","Selected Value","Calculated with \nSelected Value","Units","Description",null,"User Entered Value"]
[null,null,null,null,null,null,null,null,null,"Design Caution (Yellow)"]
[null,null,null,null,null,null,null,null,null,"Design Warning (Red)"]
[null,"Choose Device"]
[null,"Part Number","TPS54KB20",null,null,null,null,"IC part number (for differences, see table on the right)",null,"Part Number","IOUT,MAX","VREF","Fault Response"]
[null,"Vin_min_IC",{"$f":"'Part Data'!B2","v":4},null,null,null,"V","IC rated minimum input voltage",null,"TPS54KB20","25A","0.9V","Latch-off"]
[null,"Vin_max_IC",{"$f":"'Part Data'!C2","v":16},null,null,null,"V","IC rated maximum input voltage",null,"TPS54KB21","25A","0.5V","Latch-off"]
[null,"Iout_max_IC",{"$f":"'Part Data'!D2","v":25},null,null,null,"A","IC rated maximum output current",null,"TPS54KB22","25A","0.9V","Hiccup"]
[null,"Ven_R",{"$f":"'Part Data'!T2","v":1.2},null,null,null,"V","Typical EN voltage rising threshold",null,"TPS54KB23","25A","0.5V","Hiccup"]
[null,"Ven_F",{"$f":"'Part Data'!U2","v":1},null,null,null,"V","Typical EN voltage falling threshold",null,"TPS54KC23","30A","0.5V","Hiccup"]
[null,"Vvcc",{"$f":"'Part Data'!M2","v":3},null,null,null,"V","Typical internal LDO output voltage"]
[null,"Vfb_reg",{"$f":"'Part Data'!J2","v":0.9},null,null,null,"V","Typical feedback regulation voltage (0.5V, 0.9V)"]
[null,"Iss",{"$f":"'Part Data'!S2","v":36},null,null,null,"µA","Typical soft-start charge current"]
[null,"Rdson_HS",{"$f":"'Part Data'!P2","v":5.8},null,null,null,"mΩ","Typical high-side MOSFET on-resistance"]
[null,"Rdson_LS",{"$f":"'Part Data'!Q2","v":2.2999999999999998},null,null,null,"mΩ","Typical low-side MOSFET on-resistance"]
[null,"ton_min",{"$f":"'Part Data'!I2","v":30},null,null,null,"ns","Typical minimum on-time"]
[null,"toff_min_max",{"$f":"'Part Data'!O2","v":150},null,null,null,"ns","Typical minimum off-time"]
[null,"OC_response",{"$f":"'Part Data'!K2","v":"Latch Off"},null,null,null,null,"Overcurrent fault response (Latch Off, Hiccup)"]
[null,"OV_response",{"$f":"'Part Data'!L2","v":"Latch Off"},null,null,null,null,"Overvoltage fault response (Latch Off, Hiccup)"]
[null,"OC_clamp",{"$f":"'Part Data'!H2","v":27.5},null,null,null,"A","Typical OC limit high clamp (27.5A, 30.6A)"]
[null,"K_OCL",{"$f":"'Part Data'!R2","v":120000},null,null,null,null,"Gain for Rilim calculation (120000, 134000)"]
[null,"RILIM_min",{"$f":"'Part Data'!W2","v":0},null,null,null,"kΩ","Minimum ILIM pin resistance"]
[null,"RILIM_max",{"$f":"'Part Data'!X2","v":20},null,null,null,"kΩ","Maximum ILIM pin resistance"]
[null,"ILS_NOC_max",{"$f":"'Part Data'!V2","v":-7.5},null,null,null,"A","Maximum low-side negative current limit"]
[null,"Input System Parameters"]
[null,"Vin_min",4.5,null,null,null,"V","Minimum input voltage (4V - 16V)"]
[null,"Vin_typ",12,null,null,null,"V","Typical input voltage (4V - 16V)"]
[null,"Vin_max",16,null,null,null,"V","Maximum input voltage (4V - 16V)"]
[null,"Vout",3.3,null,null,null,"V",{"$f":"\"Output Voltage (\"&Vfb_reg&\"V - 5.5V)\"","v":"Output Voltage (0.9V - 5.5V)"},null,"Calculated Component Values Summary"]
[null,"Iout",25,null,null,null,"A",{"$f":"\"Output Current (up to \"&Iout_max_IC&\"A)\"","v":"Output Current (up to 25A)"}]
[null,"Select the Switching Frequency and the Operation Mode under Light Load",null,null,null,null,null,null,null,"RMSEL",{"$f":"D103","v":86.6},"kΩ"]
[null,"fsw_max_ton",null,null,null,{"$f":"Vout/Vin_max*1/(ton_min_sec)*0.001","v":6874.9999999999991},"kHz","Maximum switching frequency allowed limited by Vin_max and ton_min",null,"Lout",{"$f":"Lout","v":0.47},"µH"]
[null,"fsw_max_toff",null,null,null,{"$f":"(Vin_min-Vout-Iout*2*(DCR_Ohm+Rdson_hs_ohm))/(toff_min_max_sec*(Vin_min-Iout*2*(Rdson_hs_ohm-Rdson_b_Ohm)))*10^-3","v":1317.9190751445087},"kHz","Maximum switching frequency allowed limited by Vin_min and toff_min_max (Depends on inductor DCR and includes 2x multiplier on resistance for margin)",null,"Cout",{"$f":"Cout","v":529.31999999999994},"µF"]
[null,"fsw_input",{"$f":"fsw_select","v":800},null,null,null,"kHz","Input desired switching frequency (800kHz, 1100kHz, 1400kHz)",null,"RILIM",{"$f":"RILIM_calc","v":4.3636363636363633},"kΩ"]
[null,"LL_mode_input",{"$f":"LL_mode_select","v":"Skip-mode"},null,null,null,null,"Input desired operation mode under light load (FCCM, Skip-mode)",null,"Cin",{"$f":"Cin_cer","v":60},"µF"]
[null,"Choose the Output Inductor (Lout)",null,null,null,null,null,null,null,"Rfb_b",{"$f":"Rfb_b","v":3.01},"kΩ"]
[null,"The inductance is selected based on a p-p ripple current target. Smaller L reduces solution size while larger L reduces AC loss.",null,null,null,null,null,null,null,"Rfb_t",{"$f":"Rfb_t","v":8.06},"kΩ"]
[null,"Kind",0.3,null,null,null,"%","Target ripple/Iout ratio (typically between 15% to 40%)",null,"Cff",{"$f":"Cff","v":120},"pF"]
[null,"Lout_target",null,{"$f":"((Vin_max-Vout)*Vout)/(Iout*Kind*Vin_max*fsw_input)*1000","v":0.43656249999999996},null,null,"µH","Inductor value based on the target ripple/Iout ratio",null,"Css",{"$f":"Css","v":39},"nF"]
[null,"Lout_min",null,{"$f":"((Vin_max-Vout)*Vout)/(Iout_max_IC*0.5*Vin_max*fsw_input)*1000","v":0.26193749999999999},null,null,"µH","Minimum recommended inductance (ripple = 50% Iout_max_IC)",null,"Ren_t",{"$f":"Ren_t","v":200},"kΩ"]
[null,"Lout_max",null,{"$f":"((Vin_max-Vout)*Vout)/(Iout_max_IC*0.1*Vin_max*fsw_input)*1000","v":1.3096874999999999},null,null,"µH","Maximum recommended inductance (ripple = 10% Iout_max_IC)",null,"Ren_b",{"$f":"Ren_b","v":100},"kΩ"]
[null,"Lout_rec",null,{"$f":"MIN(MAX(D44,D43),D45)","v":0.43656249999999996},null,null,"µH","Recommended inductance value",null,"Cvcc",{"$f":"MAX(1,Cvcc)","v":1},"µF"]
[null,"Lout",null,null,0.47,null,"µH","Selected inductance",null,"Cboot",{"$f":"MAX(0.1,Cboot)","v":0.1},"µF"]
[null,"DCR",null,null,1.1000000000000001,null,"mΩ","DC resistance of selected inductor",null,"Rpg",{"$f":"Rpg","v":10},"kΩ"]
[null,"Tol_Lout",null,null,0.2,null,"%","Tolerance of inductance for selected inductor"]
[null,"Iripple_max",null,null,null,{"$f":"(Vin_max-Vout)*Vout/(Lout_H*(1-Tol_Lout)*Vin_max*fsw_input*1000)","v":8.7080285904255312},"A","Inductor ripple current at Vin_max (Includes Tol_L. Used for DC ripple calculations)"]
[null,"Ipeak",null,null,null,{"$f":"Iout+(Iripple_max/2)","v":29.354014295212764},"A","Full load peak current at Vin_max"]
[null,"Irms",null,null,null,{"$f":"SQRT(Iout^2+(Iripple_max^2)/12)","v":25.126065088422404},"A","Inductor rms current at Vin_max"]
[null,"Iripple_min",null,null,null,{"$f":"((Vin_min-Vout)*Vout)/(Lout_H*(1+Tol_Lout)*Vin_min*fsw_input*1000)","v":1.9503546099290785},null,"Inductor ripple current at Vin_min (includes Tol_L)"]
[null,"Ivalley",null,null,null,{"$f":"Iout-(Iripple_min/2)","v":24.024822695035461},"A","Full load valley current at Vin_min (used for current limit setting calculations)"]
[null,"Set current limit (RILIM)"]
[null,"Ilim_valley_rec",null,{"$f":"MIN((Iout+Iripple_min/2)/Tol_Ilim,OC_clamp)","v":27.5},null,null,"A","Recommended valley current limit setting (Includes margin  for Tol_Lout and Ilim tolerance)"]
[null,"Ilim_valley_input",27.5,null,null,null,"A","Input target valley current limit setting"]
[null,"RILIM_calc",null,{"$f":"MAX(RILIM_min,MIN(RILIM_max,10^-3*K_OCL/Ilim_valley_input))","v":4.3636363636363633},null,null,"kΩ","Calculated RILIM"]
[null,"RILIM_NSV",null,{"$f":"RILIM_NSV","v":4.32},null,null,"kΩ","Round down to nearest E96 standard value"]
[null,"RILIM",null,null,4.32,null,"kΩ","Selected RILIM (0Ω - 20kΩ)"]
[null,"Ilim_valley",null,null,null,{"$f":"MIN(IFERROR(K_OCL/(RILIM*1000),OC_clamp),OC_clamp)","v":27.5},"A","Estimated typical valley current limit with selected RILIM"]
[null,"Iout_lim_min",null,null,null,{"$f":"Ilim_valley+1/2*(Vin_min-Vout)*Vout/(Lout_H*Vin_min*fsw_input*1000)","v":28.670212765957448},"A","Estimated minimum Iout at current limit "]
[null,"Iout_lim_typ",null,null,null,{"$f":"Ilim_valley+1/2*(Vin_typ-Vout)*Vout/(Lout_H*Vin_typ*fsw_input*1000)","v":30.681515957446809},"A","Estimated typical Iout at current limit"]
[null,"Ipeak_lim",null,null,null,{"$f":"Ilim_valley+Iripple_max","v":36.208028590425528},"A","Estimated maximum peak inductor current at current limit"]
[null,"Choose the Output Capacitor (Cout)"]
[null,"The output capacitance is deteremind based on the output ripple, transient and stability requirements."]
[null,"Iout_step",10,null,null,null,"A","Iout load transient step"]
[null,"dVout_trans_perc",0.03,null,null,null,"%","Target Vout overshoot/undershoot after load step as a percentage of Vout"]
[null,"dVout_ripple_perc",0.01,null,null,null,"%","Target steady state Vout voltage ripple as a percentage of Vout"]
[null,"dVout_trans",null,{"$f":"dVout_trans_perc*Vout*10^3","v":98.999999999999986},null,null,"mV","Target Vout overshoot/undershoot after load step"]
[null,"dVout_ripple",null,{"$f":"dVout_ripple_perc*Vout*10^3","v":33},null,null,"mV","Target steady state Vout voltage ripple"]
[null,"Cout_ripple",null,{"$f":"Iripple_max/(8*dVout_ripple*10^-3*fsw_input*1000)*10^6","v":41.231195977393604},null,null,"µF","Min Cout for DC ripple requirement (ignores ESR)"]
[null,"Cout_undershoot",null,{"$f":"((Lout*Iout_step^2)*(Vout/(Vin_min*fsw_input*1000)+toff_min_max_sec))/(2*dVout_trans*10^-3*Vout*((Vin_min-Vout)/(Vin_min*fsw_input*1000)-toff_min_max_sec))","v":418.51017057628627},null,null,"µF","Min Cout for undershoot requirement"]
[null,"Cout_overshoot",null,{"$f":"Lout*Iout_step^2/(2*Vout*dVout_trans*10^-3)","v":71.931435567799213},null,null,"µF","Min Cout for overshoot requirement"]
[null,"Cout_stability",null,{"$f":"(1/(2*PI()*fp_RAMP4*1000*(1+(Vout/Vin_typ)^2)))^2*1/Lout_H*10^6","v":113.03906437004301},null,null,"µF","Min Cout for stability"]
[null,"Cout_min",null,{"$f":"(MAX(D72:D75))","v":418.51017057628627},null,null,"µF","Recommended min Cout (must include any derating due to DC/AC bias, temp and/or tolerance)"]
[null,"Cout_max",null,{"$f":"(50/(PI()*fsw_input*1000))^2*1/Lout_H*1000000","v":842.09760341038702},null,null,"µF","Max Cout for stability (f_LC > fsw/100) (Exceeding this may be ok but further validation is required)"]
[null,"ESR_trans",null,{"$f":"dVout_trans/Iout_step","v":9.8999999999999986},null,null,"mΩ","Max effective ESR to meet load step transient requirement"]
[null,"ESR_ripple",null,{"$f":"dVout_ripple/Iripple_max","v":3.7896062992125987},null,null,"mΩ","Max effective ESR to meet ripple requirement"]
[null,"ESR_max",null,{"$f":"MIN(D78:D79)","v":3.7896062992125987},null,null,"mΩ","Recommended max effective ESR \n(when using mixed type output capacitors, it may be possible for bulk capacitance to have higher ESR)"]
[null,"Cout_single_cer",null,null,22,null,"µF","Nominal value of a Single Ceramic Output Capacitor"]
[null,"Cer_derating",null,null,0.57999999999999996,null,"%","Percentage of Nominal Ceramic Capacitance remaining after Tolerance, Thermal, and DC Bias derating"]
[null,"ESR_single_cer",null,null,3,null,"mΩ","Single Ceramic Capacitor ESR"]
[null,"N_cer",null,null,7,null,null,"Number of Ceramic Capacitors"]
[null,"Cout_cer",null,null,null,{"$f":"IF(N_cer=0,0.001,N_cer*Cout_single_cer*Cer_derating)","v":89.32},"uF","Total Ceramic Output Capacitance"]
[null,"ESR_cer",null,null,null,{"$f":"IF(N_cer=0,0,E83/N_cer)","v":0.42857142857142855},"mΩ","Effective Ceramic Capacitance ESR"]
[null,"Cout_single_bulk",null,null,220,null,"uF","Nominal value of a Single Bulk/Polymer/Electrolytic Output Capacitor"]
[null,"Bulk_derating",null,null,1,null,null,"Percentage of Nominal Bulk Capacitance remaining after Tolerance, Thermal, and DC Bias derating"]
[null,"ESR_single_bulk",null,null,7,null,"mΩ","Single Bulk Capacitor ESR"]
[null,"N_bulk",null,null,2,null,null,"Number of Bulk Capacitors (Input 0 if only ceramic capacitance is used)"]
[null,"Cout_bulk",null,null,null,{"$f":"IF(N_bulk=0,0.001,N_bulk*Cout_single_bulk*Bulk_derating)","v":440},"µF","Total Bulk Output Capacitance"]
[null,"ESR_bulk",null,null,null,{"$f":"IF(N_bulk=0,10^9,ESR_single_bulk/N_bulk)","v":3.5},"mΩ","Effective Bulk Capacitance ESR"]
[null,"Cout",null,null,null,{"$f":"Cout_bulk+Cout_cer","v":529.31999999999994},"uF","Total Bulk + Ceramic Output Capacitance"]
[null,"Vout_undershoot",null,null,null,{"$f":"(Lout_H*Iout_step^2)*(Vout/(Vin_min*fsw_input*1000)+toff_min_max_sec)/(2*Cout_F*Vout*((Vin_min-Vout)/(Vin_min*fsw_input*1000)-toff_min_max_sec))*10^3","v":78.274969559155792},"mV","Estimated undershoot (ignores ESR and ESL)"]
[null,"Vout_overshoot",null,null,null,{"$f":"(Lout_H*Iout_step^2/(2*Vout*Cout_F))*10^3","v":13.453510392979904},"mV","Estimated overshoot (ignores ESR and ESL)"]
[null,"Zout_fsw",null,null,null,{"$f":"1/(1/(SQRT((ESR_bulk*10^-3)^2+1/(2*PI()*fsw_input*10^3*Cout_bulk*10^-6)^2))+1/(SQRT((ESR_cer*10^-3)^2+1/(2*PI()*fsw_input*10^3*Cout_cer*10^-6)^2)))*1000","v":1.3807511674410253},"mΩ","Output Impedance at Swiching Frequency"]
[null,"Vout_ripple",null,null,null,{"$f":"Iripple_max*Zout_fsw","v":12.023620642339878},"mV","Estimated capacitive + resistive DC ripple (ignores ESL)"]
[null,"f_LC",null,null,null,{"$f":"1/(2*PI()*SQRT(Lout_H*Cout_F))*10^-3","v":10.090485223560828},"kHz","LC resonant frequency"]
[null,"f_ESR_cer",null,null,null,{"$f":"1/(2*PI()*Cout_cer*10^-6*ESR_cer*10^-3)*10^-3","v":4157.6526408541113},"kHz","Ceramic capacitor ESR zero frequency"]
[null,"f_ESR_bulk",null,null,null,{"$f":"IF(N_bulk=0,\"N/A\",1/(2*PI()*Cout_bulk*10^-6*ESR_bulk*10^-3)*10^-3)","v":103.3473656440879},"kHz","Bulk capacitor ESR zero frequency"]
[null,"Select the Ramp Option (MSEL pin)"]
[null,"RAMP_input",{"$f":"RAMP_select","v":"RAMP1"},null,null,null,null,"Input desired RAMP option (RAMP1, RAMP2, RAMP3, RAMP4)",null,"Selectable RAMP Options"]
[null,"RMSEL_rec",null,{"$f":"RMSEL_rec","v":86.6},null,null,"kΩ","MSEL pin connection or resistor to AGND with input values",null,"RAMP Options","fp_max"]
[null,"RMSEL",null,null,86.6,null,"kΩ","Selected MSEL pin connection or resistor to AGND",null,"RAMP1",{"$f":"fp_RAMP1*(1+(Vout/Vin_typ)^2)","v":15.05875}]
[null,"fsw_select",null,null,null,{"$f":"fsw_select","v":800},"kHz","fsw with selected MSEL configuration",null,"RAMP2",{"$f":"fp_RAMP2*(1+(Vout/Vin_typ)^2)","v":19.683937500000003}]
[null,"LL_mode_select",null,null,null,{"$f":"LL_mode_select","v":"Skip-mode"},null,"Light load operation mode with selected MSEL configuration",null,"RAMP3",{"$f":"fp_RAMP3*(1+(Vout/Vin_typ)^2)","v":19.683937500000003}]
[null,"RAMP_select",null,null,null,{"$f":"RAMP_select","v":"RAMP1"},null,"RAMP option with selected MSEL configuration",null,"RAMP4",{"$f":"fp_RAMP4*(1+(Vout/Vin_typ)^2)","v":21.835187500000004}]
[null,"fp_max",null,null,null,{"$f":"f_table*(1+(Vout/Vin_typ)^2)","v":15.05875},"kHz","Maximum L-C double pole frequency with selected MSEL configuration"]
[null,"fp_RAMP4",null,null,null,{"$f":"fp_RAMP4","v":20.3},"kHz","Maximum L-C double pole frequency with RAMP4 (used for Cout_stability calculation)"]
[null,"Stability",null,null,null,{"$f":"IF(f_LC<fp_max,\"GOOD\",\"BAD\")","v":"GOOD"},null,"If BAD, go back and increase Cout, Lout, or select higher RAMP option with RMSEL"]
[null,"Choose the Input Capacitor (Cin)"]
[null,"The input capacitance is deteremind based on the input ripple requirements. Additional bulk input capacitance may be needed for transients. 0.1µF high frequency bypass capacitors are also required."]
[null,"Vin_ripple_perc",0.04,null,null,null,"%","Target DC input ripple voltage percentage"]
[null,"Vin_ripple_target",null,{"$f":"Vin_min*Vin_ripple_percent*10^3","v":180},null,null,"mV","Target DC input voltage ripple (Vin_ripple_percent of Vin_min)"]
[null,"Q_input",null,{"$f":"(Iout*(1-Vout/Vin_min)*Vout)/(fsw_input*1000*Vin_min)*10^6","v":6.1111111111111125},null,null,"µC","Charge per switching cycle (Vin_min)"]
[null,"Cin_min",null,{"$f":"MAX(Q_input/Vin_ripple_target*10^3,20)","v":33.950617283950621},null,null,"µF","Minimum input capacitance required"]
[null,"Cin_cer",null,null,60,null,"µF","Selected total input ceramic capacitance"]
[null,"Cin_derating",null,null,0.5,null,null,"Percentage of Nominal Ceramic Capacitance remaining after Tolerance, Thermal, and DC Bias derating"]
[null,"Cin_eff",null,null,null,{"$f":"Cin_cer*Cin_derating","v":30},"µF","Effective total input ceramic capacitance"]
[null,"Vin_ripple",null,null,null,{"$f":"Q_input/Cin_cer*10^3","v":101.85185185185188},"mV","Input DC ripple"]
[null,"Iin_rms",null,null,null,{"$f":"SQRT(Vout/Vin_min*((1-Vout/Vin_min)*Iout^2+ (Iripple_max^2)/12))","v":11.263048576169664},"A","Input RMS current"]
[null,"Determine feedback network values (FB resistor divider and Cff)"]
[null,"Rfb_b_rec",null,10,null,null,"kΩ","Bottom feedback resistor (1kΩ-20kΩ recommended)"]
[null,"Rfb_b",null,null,3.01,null,"kΩ","Selected bottom feedback resistor"]
[null,"Rfb_t_target",null,{"$f":"Rfb_b*(Vout/Vfb_reg-1)","v":8.0266666666666655},null,null,"kΩ","Calculated top feedback resistor"]
[null,"Rfb_t_NSV",null,{"$f":"'Part Data'!U15","v":8.06},null,null,"kΩ","Nearest Standard Value 1%"]
[null,"Rfb_t",null,null,8.06,null,"kΩ","Selected top feedback resistor"]
[null,"Vout_calc",null,null,null,{"$f":"Vfb_reg*(1+Rfb_t/Rfb_b)","v":3.3099667774086385},"V","Calculated Vout"]
[null,"FF_cap?",null,{"$f":"IF(AND(f_LC<(fsw_input/50),N_bulk=0),\"YES\",\"NO\")","v":"NO"},null,null,null,"Feedforward cap recommended?"]
[null,"fz_cff_div_f_LC",null,10,null,null,null,"Recommended location of fz_cff relative to f_LC"]
[null,"Cff_calc",null,{"$f":"1/(2*PI()*(fz_cff_div_f_LC*f_LC*10^3)*Rfb_t*10^3)*10^12","v":195.69198524732201},null,null,"pF","Recommended feedforward cap value"]
[null,"Cff_NSV",null,{"$f":"IF(Cff_calc<10000,VLOOKUP((10^(LOG(Cff_calc)-INT(LOG(Cff_calc)))),c_s1:C_f1,1),VLOOKUP((10^(LOG(Cff_calc)-INT(LOG(Cff_calc)))),C_s2:C_f2,1))*10^INT(LOG(Cff_calc))","v":180},null,null,"pF","Nearest Standard Value"]
[null,"Cff",null,null,120,null,"pF","Selected feedforward cap value "]
[null,"fz_cff",null,null,null,{"$f":"IF(Cff<>0,1/(2*PI()*Cff*0.000000001*(Rfb_t)*1000),\"N/A\")","v":164.55225712561554},"kHz","Frequency of zero added by the feedforward cap"]
[null,"Soft-start capacitor (Css)"]
[null,"Tss_target",1,null,null,null,"ms","Target soft-start time"]
[null,"Css_calc",null,{"$f":"MIN(MAX(10,(Iss*Tss_target)/Vfb_reg ),1000)","v":40},null,null,"nF","Calculated SS capacitor"]
[null,"Css",null,null,39,null,"nF","Selected SS capacitor (Must be in the range of 10nF and 1uF)"]
[null,"Tss",null,null,null,{"$f":"MAX(0,Css*Vfb_reg /Iss)","v":0.97500000000000009},"ms","SS time with selected SS capacitor"]
[null,"EN pin resistor divider (Ren_b, Ren_t)"]
[null,"Vstart_target",3.85,null,null,null,"V","Target turn on voltage set by EN resistor divider"]
[null,"Ren_b_rec",null,10,null,null,"kΩ","1k-100k recommended"]
[null,"Ren_b",null,null,100,null,"kΩ","Selected bottom resistor in EN pin resistor divider (Input 0 if not used)"]
[null,"Ren_b_eff",null,null,null,{"$f":"Ren_b*1000/(Ren_b+1000)","v":90.909090909090907},"kΩ","Effective bottom resistance including 1-MΩ internal pull-down resistance on EN pin"]
[null,"Ren_t_calc",null,{"$f":"Ren_b_eff*Vstart_target/Ven_R-Ren_b_eff","v":200.75757575757578},null,null,"kΩ","Calculated top resistor"]
[null,"Ren_t_NSV",null,{"$f":"'Part Data'!U16","v":200},null,null,"kΩ","Nearest Standard Value 1%"]
[null,"Ren_t",null,null,200,null,"kΩ","Selected top resistor in EN pin resistor divider (Input 0 if not used)"]
[null,"Vstart_typ",null,null,null,{"$f":"IF(OR(Ren_b=0,Ren_t=0),\"N/A\",Ven_R*(Ren_b_eff+Ren_t)/Ren_b_eff)","v":3.84},"V","Estimated typical turn on voltage with selected resistors"]
[null,"Vstop_typ",null,null,null,{"$f":"IF(OR(Ren_b=0,Ren_t=0),\"N/A\",Ven_F*(Ren_b_eff+Ren_t)/Ren_b_eff)","v":3.1999999999999997},"V","Estimated typical turn off voltage with selected resistors"]
[null,"Ven_max",null,null,null,{"$f":"IF(OR(Ren_b=0,Ren_t=0),\"N/A\",Vin_max*Ren_b_eff/(Ren_t+Ren_b_eff))","v":5},"V","Estimated maximum voltage at EN pin at max input voltage (Red if exceeding 5.5V abs max rating)"]
[null,"Operating Input Voltage Range"]
[null,"fsw_select",null,null,null,{"$f":"fsw_select","v":800},"kHz","Chosen switching frequency"]
[null,"Minimum_Vin",null,null,null,{"$f":"IF(2*Iout*(Rdson_hs_ohm-Rdson_b_Ohm)-(Vout+2*Iout*(DCR_Ohm+Rdson_b_Ohm))/(fsw_select_Hz*toff_min_max_sec-1)<Vin_min_IC,Vin_min_IC,2*Iout*(Rdson_hs_ohm-Rdson_b_Ohm)-(Vout+2*Iout*(DCR_Ohm+Rdson_b_Ohm))/(fsw_select_Hz*toff_min_max_sec-1))","v":4.1181818181818182},"V","Minimum input voltage allowed for proper function, based on fsw and minimum off-time"]
[null,"Maximum_Vin",null,null,null,{"$f":"IF(Vout/fsw_select_Hz*1/(ton_min_sec)*0.95>Vin_max_IC,Vin_max_IC,Vout/fsw_select_Hz*1/(ton_min_sec)*0.95)","v":16},"V","Maximum input voltage allowed for proper function, based on fsw and minimum on-time"]
[null,"VCC bypass capacitor, BOOT capacitor, PG resistor (Cvcc, Cboot, Rpg)"]
[null,"Cvcc_rec",null,1,null,null,"µF","VCC Bypass Capacitor. At a minimum, 1uF, > 6.3V, ceramic capacitor from VCC to PGND"]
[null,"Cvcc",null,null,1,null,"µF","Selected Cvcc"]
[null,"Cboot_rec",null,0.1,null,null,"µF","BOOT Capacitor. At a minimum, 0.1uF, 10V, ceramic capacitor from BOOT to SW"]
[null,"Cboot",null,null,0.1,null,"µF","Selected BOOT Capacitor"]
[null,"Rpg_rec",null,10,null,null,"Ω","PG Pullup Resistor (1k-100k recommended)"]
[null,"Rpg",null,null,10,null,"kΩ","Selected Rpg"]

{"sheet":"Schematic Checklist","index":3,"n_rows":26,"n_cols":9,"rows_kept":26,"cut":false,"hidden":false,"merged":[[5,1,5,8],[8,1,8,8],[16,1,16,8]]}
[null,null,null,null,null,null,null,null,"Table of Contents"]
[]
[]
[null,"Schematic Checklist"]
[null,"Pin","Name","Purpose","Connection For Functional Use","Reasoning","Component Values from Design Calculations","Status","Comments"]
[null,"Control"]
[null,14,"FB divider","Output feedback input","Ensure that the feedback divider network gives the appropriate Vout based on the Vref chosen. The FB pin must be connected to the AGND pin.",null,{"$f":"CONCATENATE(\"Rfb_t = \",Rfb_t,\" kΩ\",\"\nRfb_b = \",Rfb_b,\" kΩ\")","v":"Rfb_t = 8.06 kΩ\nRfb_b = 3.01 kΩ"},"Open"]
[null,14,"FB Cff","Output feedback input","Add a capacitor in parallel with the top feedback resistor","Improves transient response and may be required for sufficient phase margin or minimizing output ripple",{"$f":"IF(FF_cap?=\"NO\",\"N/A\",CONCATENATE(\"Cff = \",ROUND(Cff,0),\" pF\"))","v":"N/A"},"Open"]
[null,"Configuration"]
[null,11,"MSEL","fsw, FCCM/Skip-mode, and RAMP","Connect a resistor from MSEL pin to AGND pin. 1% or better tolerance resistor is required. Use MSEL Pin Selection table to select the desired mode.",null,{"$f":"CONCATENATE(RMSEL,\" kΩ\")","v":"86.6 kΩ"},"Open"]
[null,11,"MSEL fsw setting","fsw selection","Selected fsw should be below the maximum limits calculated in the calculator tab","When exceeding fsw_max_ton, the fsw will decrease but the output will still be regulated. \nWhen exceeding fsw_max_toff, the output will become unregulated and UVP may trip.",{"$f":"CONCATENATE(\"fsw_max_ton = \",ROUND(fsw_max_ton,0),\" kHz\",\"\nfsw_max_toff = \",ROUND(fsw_max_toff,0),\" kHz\")","v":"fsw_max_ton = 6875 kHz\nfsw_max_toff = 1318 kHz"},"Open"]
[null,12,"ILIM","OCL detection threshold setting pin","Connect the resistor from the ILIM pin to the AGND pin. Use WEBENCH or calculator to calculate the RILIM resistor value. Recommend 1% or better resistors for RILIM.",null,{"$f":"CONCATENATE(\"Valley ILIM = \",ROUND(Ilim_valley,2),\" A\n\",\"RTRIP = \",ROUND(RILIM,2),\" kΩ\")","v":"Valley ILIM = 27.5 A\nRTRIP = 4.32 kΩ"},"Open"]
[null,15,"SS","Soft-start time","Connecting a capacitor from this pin to AGND pin programs soft-start time. A minimum 10-nF capacitor is required. ",null,{"$f":"CONCATENATE(\"CSS = \",ROUND(Css,0),\" nF\")","v":"CSS = 39 nF"},"Open"]
[null,10,"PGOOD","Open drain power good flag","Connect a 1k-100k resistor to pull-up this pin. Recommend pulling up to VCC but not required.","PGOOD pin is an open-drain output so a pull-up is required when used",{"$f":"CONCATENATE(\"Rpg = \",ROUND(Rpg,0),\"  kΩ\")","v":"Rpg = 10  kΩ"},"Open"]
[null,1,"EN","Enable pin","Floating this pin is not recommended. To start switching, this pin must be pulled high.\nThe recommended max voltage rating on the EN pin is 5.5V. Do not connect EN pin directly to VIN unless the max VIN for your application is below 5.5V. \nWhen using VIN or VDD to drive the EN pin, use a resistor divider and ensure that the voltage stays below 6V.",null,{"$f":"CONCATENATE(\"Ren_t = \",Ren_t,\" kΩ\",\"\nRen_b = \",Ren_b,\" kΩ\")","v":"Ren_t = 200 kΩ\nRen_b = 100 kΩ"},"Open"]
[null,2,"AGND","Ground reference for control circuits","AGND must be connected to PGND",null,null,"Open"]
[null,"Power Stage"]
[null,"3, 9 (VIN), \n4, 8 (PGND)","VIN-PGND cap","Conversion power input","A minimum of 20-µF input capacitance is required","The input capacitor Cin should be able to give minimum ripple voltage desired for the application. Use WEBENCH or calculator to calculate the input capacitance. ",{"$f":"CONCATENATE(\"Cin > \",ROUND(Cin_min,1),\" µF\")","v":"Cin > 34 µF"},"Open"]
[null,"3, 9 (VIN),\n4, 8 (PGND)","VIN-PGND hf cap","Conversion power input","Include a 0.1µF-1µF 0402 input capacitor on each VIN pin (pin 3 and 9)","Minimizes high frequency voltage overshoots and undershoots from switching","Cin_hf >= 0.1 µF","Open"]
[null,5,"BOOT cap","Supply input for high-side FET gate driver","Connect at least 100-nF capacitor from the BOOT pin to the SW pin. The BOOT capacitor should be at least 10-V rated, X5R, and 0402 size.","10-V rating, X5R or better dielectric, and 0402 size or larger ensure stable capacitance across all operating conditions",{"$f":"CONCATENATE(\"Cboot >= \",ROUND(Cboot,2),\" µF\")","v":"Cboot >= 0.1 µF"},"Open"]
[null,6,"SW","Switching node","Connect this pin to the output inductor",null,null,"Open"]
[null,6,"SW snubber","Switching node","Optional RC Snubber from SW to PGND. This component can be not populated.","If the SW pin ringing is too high, helps minimize high frequency voltage overshoots and undershoots from switching\nCapacitor: Minimum 25V rating to support SW voltage\nResistor: Minimum 0805 package to support power loss.",null,"Open"]
[null,"N/A","Lout","Output inductor","Use the recommended inductance in WEBENCH or calculator to meet design requirements",null,{"$f":"CONCATENATE(ROUND(Lout_min,2),\" < Lout < \",ROUND(Lout_max,2),\" µH\")","v":"0.26 < Lout < 1.31 µH"},"Open"]
[null,"N/A","Cout","Output capacitors","Use the recommended capacitance in WEBENCH or calculator to meet ripple and transient requirements","The maximum Cout is a recommendation only. Exceeding this may be acceptable but the stability should be evaluated by measuring the load step response or bode plot.",{"$f":"CONCATENATE(ROUND(Cout_min,0),\" < Cout < \",ROUND(Cout_max,0),\" µF\")","v":"419 < Cout < 842 µF"},"Open"]
[null,7,"VCC","Internal 3-V LDO output","Require at least 1-µF, 6.3-V rating ceramic capacitor from VCC pin to PGND pins as the bypass capacitor. 2.2-µF recommended.","Minimum capacitance required for stability of the internal regulator.","Cvcc >= 1 µF","Open"]
[null,7,"VCC","Internal 3-V LDO output","An external bias with 3.3-V can be connected to this pin to save the power losses on the internal LDO",null,null,"Open"]

{"sheet":"Layout Checklist","index":4,"n_rows":21,"n_cols":8,"rows_kept":21,"cut":false,"hidden":false,"merged":[[15,1,15,7],[5,1,5,7]]}
[null,null,null,null,null,null,null,"Table of Contents"]
[]
[]
[null,"Layout Checklist"]
[null,"Pin","Name","Purpose","Placement or Routing?","Remarks","Status","Comments"]
[null,"Power Stage"]
[null,"3, 9, 16 (VIN), \n4, 8 (PGND),\n6 (SW)","VIN, PGND, SW",null,"Placement and Routing","VIN, PGND, and SW traces must be as wide as possible to reduce trace impedance and improve heat dissipation.","Open"]
[null,"N/A","Cout and Lout","Output filter inductor and capacitors","Placement and Routing","Place the power components (including input and output capacitors, the inductor, and the IC) on the top side of the PCB. To shield and isolate the small signal traces from noisy power lines, insert at least one solid ground inner plane.","Open"]
[null,"3, 9 (VIN), \n4, 8 (PGND)","VIN-PGND caps","Conversion power input","Placement","Placement of the VIN decoupling capacitors are important for the power MOSFET robustness. A 1-μF/25-V/0402 ceramic high-frequency bypass capacitor on each VIN pin (pin 3 and 9) is required, connected to the adjacent PGND pins (pin 4 and 8 respectively). Place the remaining ceramic input capacitance next to these high frequency bypass capacitors. The remaining input capacitance can be placed on the other side of the board, but use as many vias as possible to minimize impedance between the capacitors and the pins of the IC.\n","Open"]
[null,"4, 8, 16","PGND",null,"Routing","Place eight vias below the PGND pins (pins 4, 8, and 16) and as many vias as possible near the PGND pins (pin 4 and 8). This action minimizes parasitic impedance and also lowers thermal resistance.","Open"]
[null,"3, 9","VIN",null,"Routing","Use vias near both VIN pins and provide a low impedance connection between them through an internal layer. A via can also be placed below each of the VIN pins.","Open"]
[null,7,"VCC cap","Internal 3-V LDO output","Placement","Place the VCC decoupling capacitor as close as possible to the device, with a short return to PGND pin 8. Ensure the VCC decoupling loop is small and use traces with a width of 12 mil or wider to route the connection.","Open"]
[null,5,"BOOT cap","Supply input for high-side FET gate driver","Placement","Place the BOOT capacitor as close as possible to the BOOT and SW pins. Use traces with a width of 12 mil or wider to route the connection.","Open"]
[null,6,"SW","Switching node","Routing","The PCB trace, which connects the SW pin and high-voltage side of the inductor, is defined as switch node. The switch node must be as short and wide as possible.","Open"]
[null,6,"SW snubber","Switching node","Placement and Routing","Optional If used, place the RC snubber on the opposite side of the board from the IC with multiple vias in the SW node to minimize routing impedance and with a very low impedance return to PGND pins.","Open"]
[null,"Control and Configuration"]
[null,"14 (FB), \n13 (GOSNS)","FB, GOSNS","Output feedback input","Routing","Always place the feedback resistors near the device to minimize the FB trace distance, no matter single-end sensing or remote sensing.\n– For remote sensing, the connections from the FB voltage divider resistors to the remote location must be\na differential pair of PCB traces, and must implement Kelvin sensing across a bypass capacitor of 0.1 μF or higher. The ground connection of the remote sensing signal must be connected to GOSNS pin. The VOUT connection of the remote sensing signal must be connected to the feedback resistor divider with the bottom feedback resistor terminated to the GOSNS pin. To maintain stable output voltage and minimize the ripple, the pair of remote sensing lines must stay away from any noise sources such as inductor and SW nodes, or high frequency clock lines. TI recommends to shield the pair of remote sensing lines with ground planes above and below.\n– For single-end sensing, connect the top feedback resistor between the FB pin and the output voltage to a high-frequency local output bypass capacitor of 0.1 μF or higher, and short GOSNS to AGND with a short trace.","Open"]
[null,"12, 14, 15","MSEL, ILIM, SS","MSEL selection, Current limit, and soft-start timing","Placement","Return the MSEL resistor, ILIM resistor, and SS capacitor to a quiet AGND island.","Open"]
[null,2,"AGND","Ground reference for control circuits","Routing","Connect the AGND pin (pin 2) to the PGND pad (pin 16) beneath the device.","Open"]
[null,10,"PGOOD","Open drain power good","Placement and Routing","Avoid routing the PG signal and any other noisy signals in the application near noise sensitive signals, such as ILIM, FB and GOSNS to limit coupling.","Open"]
[null,1,"EN","Enable pin","Placement and Routing","All components and routing for the EN pin should be placed away from any high voltage switch node (itself and others), such as SW and BOOT to avoid noise coupling.","Open"]

{"sheet":"Part Data","index":5,"n_rows":581,"n_cols":29,"rows_kept":581,"cut":false,"hidden":true,"merged":[]}
["Selected Device"]
[{"$f":"VLOOKUP('Device Calculator'!$C$9,'Part Data'!$A$6:$AB$10,A4,FALSE)","v":"TPS54KB20"},{"$f":"VLOOKUP('Device Calculator'!$C$9,'Part Data'!$A$6:$AB$10,B4,FALSE)","v":4},{"$f":"VLOOKUP('Device Calculator'!$C$9,'Part Data'!$A$6:$AB$10,C4,FALSE)","v":16},{"$f":"VLOOKUP('Device Calculator'!$C$9,'Part Data'!$A$6:$AB$10,D4,FALSE)","v":25},{"$f":"VLOOKUP('Device Calculator'!$C$9,'Part Data'!$A$6:$AB$10,E4,FALSE)","v":800},{"$f":"VLOOKUP('Device Calculator'!$C$9,'Part Data'!$A$6:$AB$10,F4,FALSE)","v":1100},{"$f":"VLOOKUP('Device Calculator'!$C$9,'Part Data'!$A$6:$AB$10,G4,FALSE)","v":1400},{"$f":"VLOOKUP('Device Calculator'!$C$9,'Part Data'!$A$6:$AB$10,H4,FALSE)","v":27.5},{"$f":"VLOOKUP('Device Calculator'!$C$9,'Part Data'!$A$6:$AB$10,I4,FALSE)","v":30},{"$f":"VLOOKUP('Device Calculator'!$C$9,'Part Data'!$A$6:$AB$10,J4,FALSE)","v":0.9},{"$f":"VLOOKUP('Device Calculator'!$C$9,'Part Data'!$A$6:$AB$10,K4,FALSE)","v":"Latch Off"},{"$f":"VLOOKUP('Device Calculator'!$C$9,'Part Data'!$A$6:$AB$10,L4,FALSE)","v":"Latch Off"},{"$f":"VLOOKUP('Device Calculator'!$C$9,'Part Data'!$A$6:$AB$10,M4,FALSE)","v":3},{"$f":"VLOOKUP('Device Calculator'!$C$9,'Part Data'!$A$6:$AB$10,N4,FALSE)","v":4},{"$f":"VLOOKUP('Device Calculator'!$C$9,'Part Data'!$A$6:$AB$10,O4,FALSE)","v":150},{"$f":"VLOOKUP('Device Calculator'!$C$9,'Part Data'!$A$6:$AB$10,P4,FALSE)","v":5.8},{"$f":"VLOOKUP('Device Calculator'!$C$9,'Part Data'!$A$6:$AB$10,Q4,FALSE)","v":2.2999999999999998},{"$f":"VLOOKUP('Device Calculator'!$C$9,'Part Data'!$A$6:$AB$10,R4,FALSE)","v":120000},{"$f":"VLOOKUP('Device Calculator'!$C$9,'Part Data'!$A$6:$AB$10,S4,FALSE)","v":36},{"$f":"VLOOKUP('Device Calculator'!$C$9,'Part Data'!$A$6:$AB$10,T4,FALSE)","v":1.2},{"$f":"VLOOKUP('Device Calculator'!$C$9,'Part Data'!$A$6:$AB$10,U4,FALSE)","v":1},{"$f":"VLOOKUP('Device Calculator'!$C$9,'Part Data'!$A$6:$AB$10,V4,FALSE)","v":-7.5},{"$f":"VLOOKUP('Device Calculator'!$C$9,'Part Data'!$A$6:$AB$10,W4,FALSE)","v":0},{"$f":"VLOOKUP('Device Calculator'!$C$9,'Part Data'!$A$6:$AB$10,X4,FALSE)","v":20},{"$f":"VLOOKUP('Device Calculator'!$C$9,'Part Data'!$A$6:$AB$10,Y4,FALSE)","v":4.9345181134654821},{"$f":"VLOOKUP('Device Calculator'!$C$9,'Part Data'!$A$6:$AB$10,Z4,FALSE)","v":30.959293735224588},{"$f":"VLOOKUP('Device Calculator'!$C$9,'Part Data'!$A$6:$AB$10,AA4,FALSE)","v":0.12579249946271229},{"$f":"VLOOKUP('Device Calculator'!$C$9,'Part Data'!$A$6:$AB$10,AB4,FALSE)","v":0}]
[]
[1,2,3,4,5,6,7,8,9,10,11,12,13,14,15,16,17,18,19,20,21,22,{"$f":"V4+1","v":23},{"$f":"W4+1","v":24},{"$f":"X4+1","v":25},26,27,28,0]
["Part #","VIN_min","VIN_max","Io,rated","Fsw_1","Fsw_2","Fsw_3","OC clamp","tonmin","Vfb_reg","OC Fault","OV Fault","VCC LDO Voltage","VIN_min_bias","toffmin","R_HS","R_LS","K_OCL","I_ss","EN_rise","EN_fall","Ioc_neg_max","RILIM_min","RILIM_max","R_ILIM_calc","Ilim_min","ILIM_Tol","Rboot_rec",{"$f":"AC101/10","v":1E-3}]
["TPS54KB20",4,16,25,800,1100,1400,27.5,30,0.9,"Latch Off","Latch Off",3,4,150,5.8,2.2999999999999998,120000,36,1.2,1,-7.5,0,20,{"$f":"MAX(PartData[[#This Row],[RILIM_min]],MIN(PartData[[#This Row],[RILIM_max]],10^-3*R6/(Ilim_valley_input-(Vin_typ-Vout)*Vout/(2*Vin_typ*Lout*fsw_select*10^-3))))","v":4.9345181134654821},{"$f":"PartData[[#This Row],[K_OCL]]/(RILIM*10^3)+1/2*(Vin_typ-Vout)*Vout/Vin_typ*1/(Lout*fsw_select*10^-3)","v":30.959293735224588},{"$f":"(Z6-Ilim_valley)/Ilim_valley","v":0.12579249946271229},0,{"$f":"AC102/10","v":1.0200000000000001E-3}]
["TPS54KB21",4,16,25,800,1100,1400,27.5,30,0.5,"Latch Off","Latch Off",3,4,150,5.8,2.2999999999999998,120000,36,1.2,1,-7.5,0,20,{"$f":"MAX(PartData[[#This Row],[RILIM_min]],MIN(PartData[[#This Row],[RILIM_max]],10^-3*R7/(Ilim_valley_input-(Vin_typ-Vout)*Vout/(2*Vin_typ*Lout*fsw_select*10^-3))))","v":4.9345181134654821},{"$f":"PartData[[#This Row],[K_OCL]]/(RILIM*10^3)+1/2*(Vin_typ-Vout)*Vout/Vin_typ*1/(Lout*fsw_select*10^-3)","v":30.959293735224588},{"$f":"(Z7-Ilim_valley)/Ilim_valley","v":0.12579249946271229},null,1.0500000000000002E-3]
["TPS54KB22",4,16,25,800,1100,1400,27.5,30,0.9,"Hiccup ","Hiccup",3,4,150,5.8,2.2999999999999998,120000,36,1.2,1,-7.5,0,20,{"$f":"MAX(PartData[[#This Row],[RILIM_min]],MIN(PartData[[#This Row],[RILIM_max]],10^-3*R8/(Ilim_valley_input-(Vin_typ-Vout)*Vout/(2*Vin_typ*Lout*fsw_select*10^-3))))","v":4.9345181134654821},{"$f":"PartData[[#This Row],[K_OCL]]/(RILIM*10^3)+1/2*(Vin_typ-Vout)*Vout/Vin_typ*1/(Lout*fsw_select*10^-3)","v":30.959293735224588},{"$f":"(Z8-Ilim_valley)/Ilim_valley","v":0.12579249946271229},null,1.0700000000000002E-3]
["TPS54KB23",4,16,25,800,1100,1400,27.5,30,0.5,"Hiccup ","Hiccup",3,4,150,5.8,2.2999999999999998,120000,36,1.2,1,-7.5,0,20,{"$f":"MAX(PartData[[#This Row],[RILIM_min]],MIN(PartData[[#This Row],[RILIM_max]],10^-3*R9/(Ilim_valley_input-(Vin_typ-Vout)*Vout/(2*Vin_typ*Lout*fsw_select*10^-3))))","v":4.9345181134654821},{"$f":"PartData[[#This Row],[K_OCL]]/(RILIM*10^3)+1/2*(Vin_typ-Vout)*Vout/Vin_typ*1/(Lout*fsw_select*10^-3)","v":30.959293735224588},{"$f":"(Z9-Ilim_valley)/Ilim_valley","v":0.12579249946271229},null,1.1000000000000001E-3]
["TPS54KC23",4,16,30,800,1100,1400,30.6,30,0.5,"Hiccup ","Hiccup",3,4,150,5.8,2.2999999999999998,134000,36,1.2,1,-7.5,0,20,{"$f":"MAX(PartData[[#This Row],[RILIM_min]],MIN(PartData[[#This Row],[RILIM_max]],10^-3*R10/(Ilim_valley_input-(Vin_typ-Vout)*Vout/(2*Vin_typ*Lout*fsw_select*10^-3))))","v":5.5102118933697879},{"$f":"PartData[[#This Row],[K_OCL]]/(RILIM*10^3)+1/2*(Vin_typ-Vout)*Vout/Vin_typ*1/(Lout*fsw_select*10^-3)","v":34.200034475965325},{"$f":"(Z10-Ilim_valley)/Ilim_valley","v":0.24363761730782998},null,1.1299999999999999E-3]
[null,null,null,null,null,null,null,null,null,null,null,null,null,null,null,null,null,null,null,null,null,null,null,null,null,null,null,null,1.15E-3]
[null,null,null,null,null,null,null,null,null,null,null,null,null,null,null,null,null,null,null,null,null,null,null,null,null,null,null,null,1.1800000000000001E-3]
[null,null,null,null,null,null,null,null,null,null,null,null,null,null,null,null,null,null,null,null,null,null,null,null,null,null,null,null,1.2099999999999999E-3]
[null,null,null,null,null,null,null,null,null,null,null,null,null,null,null,null,null,null,null,null,null,"Extra step to round down",null,null,null,null,null,null,1.24E-3]
[null,null,"fsw_input","LL_mode_input","RAMP_input",null,null,null,null,null,null,null,null,null,null,null,null,null,"Rfb_t_NSV",{"$f":"'Device Calculator'!D125","v":8.0266666666666655},{"$f":"INDEX(NSV,MATCH(MIN(ABS(NSV-T15)),ABS(NSV-T15),0))","v":8.06},null,null,null,null,null,null,null,1.2699999999999999E-3]
[null,null,800,"FCCM","RAMP4",null,null,null,null,null,null,null,null,null,null,null,null,null,"Ren_t_NSV",{"$f":"'Device Calculator'!D145","v":200.75757575757578},{"$f":"INDEX(NSV,MATCH(MIN(ABS(NSV-T16)),ABS(NSV-T16),0))","v":200},null,null,null,null,null,null,null,1.3000000000000002E-3]
[null,null,1100,"Skip-mode","RAMP3",null,null,null,null,null,null,null,null,null,null,null,null,null,"RILIM_NSV",{"$f":"RILIM_calc","v":4.3636363636363633},{"$f":"INDEX(NSV,MATCH(MIN(ABS(NSV-T17)),ABS(NSV-T17),0))","v":4.32},{"$f":"INDEX(NSV,MATCH(MIN(ABS(NSV-T17/1.024)),ABS(NSV-T17/1.024),0))","v":4.22},{"$f":"IF(U17<=T17,U17,V17)","v":4.32},null,null,null,null,null,1.33E-3]
[null,null,1400,null,"RAMP2",null,null,null,null,null,null,null,null,null,null,null,null,null,null,null,null,null,null,null,null,null,null,null,1.3700000000000001E-3]
[null,null,null,null,"RAMP1",null,null,null,null,null,null,null,null,null,null,null,null,null,null,null,null,null,null,null,null,null,null,null,1.3999999999999998E-3]
[null,null,null,null,null,null,null,null,null,null,null,null,null,null,null,null,null,null,null,null,null,null,null,null,null,null,null,null,1.4299999999999998E-3]
[null,null,null,null,null,null,null,null,null,null,null,null,null,null,null,null,null,null,null,null,null,null,null,null,null,null,null,null,1.47E-3]
[null,null,null,null,null,null,null,null,null,null,null,null,null,null,null,null,null,null,null,null,null,null,null,null,null,null,null,null,1.5E-3]
[null,null,null,null,null,null,null,null,null,null,null,null,null,null,null,null,null,null,null,null,null,null,null,null,null,null,null,null,1.5400000000000001E-3]
[null,null,null,null,null,null,null,null,null,null,null,null,null,null,null,null,null,null,null,null,null,null,null,null,null,null,null,null,1.5800000000000002E-3]
[null,null,null,null,null,null,null,null,null,null,null,null,null,null,null,null,null,null,null,null,null,null,null,null,null,null,null,null,1.6199999999999999E-3]
[null,null,null,null,null,null,null,null,null,null,null,null,null,null,null,null,null,null,null,null,null,null,null,null,null,null,null,null,1.6499999999999998E-3]
[null,null,"MIN","TYP",null,null,null,null,null,null,null,null,null,null,null,null,null,null,null,null,null,null,null,null,null,null,null,null,1.6899999999999999E-3]
[null,null,25,27.5,null,null,null,null,null,null,null,null,null,null,null,null,null,null,null,null,null,null,null,null,null,null,null,null,1.7399999999999998E-3]
[null,null,17.899999999999999,22.1,null,null,null,null,null,null,null,null,null,null,null,null,null,null,null,null,null,null,null,null,null,null,null,null,1.7799999999999999E-3]
[null,null,13,16.2,null,null,null,null,null,null,null,null,null,null,null,null,null,null,null,null,null,null,null,null,null,null,null,null,1.82E-3]
[null,null,8.5,11.1,null,null,null,null,null,null,null,null,null,null,null,null,null,null,null,null,null,null,null,null,null,null,null,null,1.8700000000000001E-3]
[null,null,4,5.9,null,null,null,null,null,null,null,null,null,null,null,null,null,null,null,null,null,null,null,null,null,null,null,null,1.9099999999999998E-3]
[null,null,null,null,null,null,null,null,null,null,null,null,null,null,null,null,null,null,null,null,null,null,null,null,null,null,null,null,1.9599999999999999E-3]
[null,null,null,null,null,null,null,null,null,null,null,null,null,null,null,null,null,null,null,null,null,null,null,null,null,null,null,null,{"$f":"AC130/10","v":2E-3}]
[null,null,"Ivalley (min)",{"$f":"0.86*Ivalley - 1.0391","v":19.622247517730493},null,null,null,null,null,null,null,null,null,null,null,null,null,null,null,null,null,null,null,null,null,null,null,null,2.0499999999999997E-3]
[null,null,"Tol_Ilim",{"$f":"D35/Ivalley","v":0.81674890036900361},null,null,null,null,null,null,null,null,null,null,null,null,null,null,null,null,null,null,null,null,null,null,null,null,2.1000000000000003E-3]
[null,null,null,null,null,null,null,null,null,null,null,null,null,null,null,null,null,null,null,null,null,null,null,null,null,null,null,null,2.15E-3]
[null,null,null,null,null,null,null,null,null,null,null,null,null,null,null,null,null,null,null,null,null,null,null,null,null,null,null,null,2.2100000000000002E-3]
[null,null,null,null,null,null,null,null,null,null,null,null,null,null,null,null,null,null,null,null,null,null,null,null,null,null,null,null,2.2599999999999999E-3]
[null,null,null,null,null,null,null,null,null,null,null,null,null,null,null,null,null,null,null,null,null,null,null,null,null,null,null,null,2.32E-3]
[null,null,null,null,null,null,null,null,null,null,null,null,null,null,null,null,null,null,null,null,null,null,null,null,null,null,null,null,2.3700000000000001E-3]
[null,null,null,null,null,null,null,null,null,null,null,null,null,null,null,null,null,null,null,null,null,null,null,null,null,null,null,null,2.4300000000000003E-3]
[null,null,null,null,null,null,null,null,null,null,null,null,null,null,null,null,null,null,null,null,null,null,null,null,null,null,null,null,2.49E-3]
[null,null,null,null,null,null,null,null,null,null,null,null,null,null,null,null,null,null,null,null,null,null,null,null,null,null,null,null,2.5500000000000002E-3]
[null,null,null,null,null,null,null,null,null,null,null,null,null,null,null,null,null,null,null,null,null,null,null,null,null,null,null,null,2.6100000000000003E-3]
[null,null,null,null,null,null,null,null,null,null,null,null,null,null,null,null,null,null,null,null,null,null,null,null,null,null,null,null,2.6700000000000001E-3]
[null,null,null,null,null,null,null,null,null,null,null,null,null,null,null,null,null,null,null,null,null,null,null,null,null,null,null,null,2.7400000000000002E-3]
[null,null,null,null,null,null,null,null,null,null,null,null,null,null,null,null,null,null,null,null,null,null,null,null,null,null,null,null,2.7999999999999995E-3]
[null,null,null,null,null,null,null,null,null,null,null,null,null,null,null,null,null,null,null,null,null,null,null,null,null,null,null,null,2.8700000000000002E-3]
[null,null,null,null,null,null,null,null,null,null,null,null,null,null,null,null,null,null,null,null,null,null,null,null,null,null,null,null,2.9399999999999999E-3]
[null,null,null,null,null,null,null,null,null,null,null,null,null,null,null,null,null,null,null,null,null,null,null,null,null,null,null,null,3.0099999999999997E-3]
[null,null,null,null,null,null,null,null,null,null,null,null,null,null,null,null,null,null,null,null,null,null,null,null,null,null,null,null,3.0899999999999999E-3]
[null,null,null,null,null,null,null,null,null,null,null,null,null,null,null,null,null,null,null,null,null,null,null,null,null,null,null,null,3.1600000000000005E-3]
[null,null,null,null,null,null,null,null,null,null,null,null,null,null,null,null,null,null,null,null,null,null,null,null,null,null,null,null,3.2399999999999998E-3]
[null,null,null,null,null,null,null,null,null,null,null,null,null,null,null,null,null,null,null,null,null,null,null,null,null,null,null,null,3.3199999999999992E-3]
[null,null,null,null,null,null,null,null,null,null,null,null,null,null,null,null,null,null,null,null,null,null,null,null,null,null,null,null,3.3999999999999994E-3]
[null,null,null,null,null,null,null,null,null,null,null,null,null,null,null,null,null,null,null,null,null,null,null,null,null,null,null,null,3.4799999999999996E-3]
[null,null,null,null,null,null,null,null,null,null,null,null,null,null,null,null,null,null,null,null,null,null,null,null,null,null,null,null,3.5699999999999994E-3]
[null,null,null,null,null,null,null,null,null,null,null,null,null,null,null,null,null,null,null,null,null,null,null,null,null,null,null,null,3.6499999999999996E-3]
[null,null,null,null,null,null,null,null,null,null,null,null,null,null,null,null,null,null,null,null,null,null,null,null,null,null,null,null,3.7400000000000003E-3]
[null,null,null,null,null,null,null,null,null,null,null,null,null,null,null,null,null,null,null,null,null,null,null,null,null,null,null,null,3.8300000000000001E-3]
[null,null,null,null,null,null,null,null,null,null,null,null,null,null,null,null,null,null,null,null,null,null,null,null,null,null,null,null,3.9199999999999999E-3]
[null,null,null,null,null,null,null,null,null,null,null,null,null,null,null,null,null,null,null,null,null,null,null,null,null,null,null,null,4.0200000000000001E-3]
[null,null,null,null,null,null,null,null,null,null,null,null,null,null,null,null,null,null,null,null,null,null,null,null,null,null,null,null,4.1200000000000004E-3]
[null,null,null,null,null,null,null,null,null,null,null,null,null,null,null,null,null,null,null,null,null,null,null,null,null,null,null,null,4.2199999999999998E-3]
[null,null,null,null,null,null,null,null,null,null,null,null,null,null,null,null,null,null,null,null,null,null,null,null,null,null,null,null,{"$f":"AC162/10","v":4.3200000000000001E-3}]
[null,null,null,null,null,null,null,null,null,null,null,null,null,null,null,null,null,null,null,null,null,null,null,null,null,null,null,null,4.4200000000000003E-3]
[null,null,null,null,null,null,null,null,null,null,null,null,null,null,null,null,null,null,null,null,null,null,null,null,null,null,null,null,4.5300000000000002E-3]
[null,null,null,null,null,null,null,null,null,null,null,null,null,null,null,null,null,null,null,null,null,null,null,null,null,null,null,null,4.64E-3]
[null,null,null,null,null,null,null,null,null,null,null,null,null,null,null,null,null,null,null,null,null,null,null,null,null,null,null,null,4.7499999999999999E-3]
[null,null,null,null,null,null,null,null,null,null,null,null,null,null,null,null,null,null,null,null,null,null,null,null,null,null,null,null,4.8700000000000002E-3]
[null,null,null,null,null,null,null,null,null,null,null,null,null,null,null,null,null,null,null,null,null,null,null,null,null,null,null,null,4.9899999999999996E-3]
[null,null,null,null,null,null,null,null,null,null,null,null,null,null,null,null,null,null,null,null,null,null,null,null,null,null,null,null,5.11E-3]
[null,null,null,null,null,null,null,null,null,null,null,null,null,null,null,null,null,null,null,null,null,null,null,null,null,null,null,null,5.2300000000000003E-3]
[null,null,null,null,null,null,null,null,null,null,null,null,null,null,null,null,null,null,null,null,null,null,null,null,null,null,null,null,5.3600000000000002E-3]
[null,null,null,null,null,null,null,null,null,null,null,null,null,null,null,null,null,null,null,null,null,null,null,null,null,null,null,null,5.4900000000000001E-3]
[null,null,null,null,null,null,null,null,null,null,null,null,null,null,null,null,null,null,null,null,null,null,null,null,null,null,null,null,5.6200000000000009E-3]
[null,null,null,null,null,null,null,null,null,null,null,null,null,null,null,null,null,null,null,null,null,null,null,null,null,null,null,null,5.7599999999999995E-3]
[null,null,null,null,null,null,null,null,null,null,null,null,null,null,null,null,null,null,null,null,null,null,null,null,null,null,null,null,5.9000000000000007E-3]
[null,null,null,null,null,null,null,null,null,null,null,null,null,null,null,null,null,null,null,null,null,null,null,null,null,null,null,null,6.0399999999999994E-3]
[null,null,null,null,null,null,null,null,null,null,null,null,null,null,null,null,null,null,null,null,null,null,null,null,null,null,null,null,6.1899999999999993E-3]
[null,null,null,null,null,null,null,null,null,null,null,null,null,null,null,null,null,null,null,null,null,null,null,null,null,null,null,null,6.3400000000000001E-3]
[null,null,null,null,null,null,null,null,null,null,null,null,null,null,null,null,null,null,null,null,null,null,null,null,null,null,null,null,6.4900000000000001E-3]
[null,null,null,null,null,null,null,null,null,null,null,null,null,null,null,null,null,null,null,null,null,null,null,null,null,null,null,null,{"$f":"AC180/10","v":6.6500000000000005E-3}]
[null,null,null,null,null,null,null,null,null,null,null,null,null,null,null,null,null,null,null,null,null,null,null,null,null,null,null,null,{"$f":"AC181/10","v":6.8099999999999992E-3}]
[null,null,null,null,null,null,null,null,null,null,null,null,null,null,null,null,null,null,null,null,null,null,null,null,null,null,null,null,6.9800000000000001E-3]
[null,null,null,null,null,null,null,null,null,null,null,null,null,null,null,null,null,null,null,null,null,null,null,null,null,null,null,null,7.150000000000001E-3]
[null,null,null,null,null,null,null,null,null,null,null,null,null,null,null,null,null,null,null,null,null,null,null,null,null,null,null,null,7.3200000000000001E-3]
[null,null,null,null,null,null,null,null,null,null,null,null,null,null,null,null,null,null,null,null,null,null,null,null,null,null,null,null,7.4999999999999997E-3]
[null,null,null,null,null,null,null,null,null,null,null,null,null,null,null,null,null,null,null,null,null,null,null,null,null,null,null,null,7.6800000000000011E-3]
[null,null,null,null,null,null,null,null,null,null,null,null,null,null,null,null,null,null,null,null,null,null,null,null,null,null,null,null,7.8700000000000003E-3]
[null,null,null,null,null,null,null,null,null,null,null,null,null,null,null,null,null,null,null,null,null,null,null,null,null,null,null,null,8.0600000000000012E-3]
[null,null,null,null,null,null,null,null,null,null,null,null,null,null,null,null,null,null,null,null,null,null,null,null,null,null,null,null,8.2499999999999987E-3]
[null,null,null,null,null,null,null,null,null,null,null,null,null,null,null,null,null,null,null,null,null,null,null,null,null,null,null,null,8.4499999999999992E-3]
[null,null,null,null,null,null,null,null,null,null,null,null,null,null,null,null,null,null,null,null,null,null,null,null,null,null,null,null,8.6599999999999993E-3]
[null,null,null,null,null,null,null,null,null,null,null,null,null,null,null,null,null,null,null,null,null,null,null,null,null,null,null,null,8.8699999999999994E-3]
[null,null,null,null,null,null,null,null,null,null,null,null,null,null,null,null,null,null,null,null,null,null,null,null,null,null,null,null,9.0900000000000009E-3]
[null,null,null,null,null,null,null,null,null,null,null,null,null,null,null,null,null,null,null,null,null,null,null,null,null,null,null,null,9.3100000000000006E-3]
[null,null,null,null,null,null,null,null,null,null,null,null,null,null,null,null,null,null,null,null,null,null,null,null,null,null,null,null,9.5300000000000003E-3]
[null,null,null,null,null,null,null,null,null,null,null,null,null,null,null,null,null,null,null,null,null,null,null,null,null,null,null,null,9.7599999999999996E-3]
[null,null,null,null,null,null,null,null,null,null,null,null,null,null,null,null,null,null,null,null,null,null,null,null,null,null,null,null,0.01]
[null,null,null,null,null,null,null,null,null,null,null,null,null,null,null,null,null,null,null,null,null,null,null,null,null,null,null,null,1.0200000000000001E-2]
[null,null,null,null,null,null,null,null,null,null,null,null,null,null,null,null,null,null,null,null,null,null,null,null,null,null,null,null,1.0500000000000001E-2]
[null,null,null,null,null,null,null,null,null,null,null,null,null,null,null,null,null,null,null,null,null,null,null,null,null,null,null,null,1.0700000000000001E-2]
[null,null,null,null,null,null,null,null,null,null,null,null,null,null,null,null,null,null,null,null,null,null,null,null,null,null,null,null,1.1000000000000001E-2]
[null,null,null,null,null,null,null,null,null,null,null,null,null,null,null,null,null,null,null,null,null,null,null,null,null,null,null,null,1.1299999999999999E-2]
[null,null,null,null,null,null,null,null,null,null,null,null,null,null,null,null,null,null,null,null,null,null,null,null,null,null,null,null,1.15E-2]
[null,null,null,null,null,null,null,null,null,null,null,null,null,null,null,null,null,null,null,null,null,null,null,null,null,null,null,null,1.18E-2]
[null,null,null,null,null,null,null,null,null,null,null,null,null,null,null,null,null,null,null,null,null,null,null,null,null,null,null,null,1.21E-2]
[null,null,null,null,null,null,null,null,null,null,null,null,null,null,null,null,null,null,null,null,null,null,null,null,null,null,null,null,1.24E-2]
[null,null,null,null,null,null,null,null,null,null,null,null,null,null,null,null,null,null,null,null,null,null,null,null,null,null,null,null,1.2699999999999999E-2]
[null,null,null,null,null,null,null,null,null,null,null,null,null,null,null,null,null,null,null,null,null,null,null,null,null,null,null,null,1.3000000000000001E-2]
[null,null,null,null,null,null,null,null,null,null,null,null,null,null,null,null,null,null,null,null,null,null,null,null,null,null,null,null,1.3300000000000001E-2]
[null,null,null,null,null,null,null,null,null,null,null,null,null,null,null,null,null,null,null,null,null,null,null,null,null,null,null,null,1.37E-2]
[null,null,null,null,null,null,null,null,null,null,null,null,null,null,null,null,null,null,null,null,null,null,null,null,null,null,null,null,1.3999999999999999E-2]
[null,null,null,null,null,null,null,null,null,null,null,null,null,null,null,null,null,null,null,null,null,null,null,null,null,null,null,null,1.4299999999999998E-2]
[null,null,null,null,null,null,null,null,null,null,null,null,null,null,null,null,null,null,null,null,null,null,null,null,null,null,null,null,1.47E-2]
[null,null,null,null,null,null,null,null,null,null,null,null,null,null,null,null,null,null,null,null,null,null,null,null,null,null,null,null,1.4999999999999999E-2]
[null,null,null,null,null,null,null,null,null,null,null,null,null,null,null,null,null,null,null,null,null,null,null,null,null,null,null,null,1.54E-2]
[null,null,null,null,null,null,null,null,null,null,null,null,null,null,null,null,null,null,null,null,null,null,null,null,null,null,null,null,1.5800000000000002E-2]
[null,null,null,null,null,null,null,null,null,null,null,null,null,null,null,null,null,null,null,null,null,null,null,null,null,null,null,null,1.6199999999999999E-2]
[null,null,null,null,null,null,null,null,null,null,null,null,null,null,null,null,null,null,null,null,null,null,null,null,null,null,null,null,1.6499999999999997E-2]
[null,null,null,null,null,null,null,null,null,null,null,null,null,null,null,null,null,null,null,null,null,null,null,null,null,null,null,null,1.6899999999999998E-2]
[null,null,null,null,null,null,null,null,null,null,null,null,null,null,null,null,null,null,null,null,null,null,null,null,null,null,null,null,1.7399999999999999E-2]
[null,null,null,null,null,null,null,null,null,null,null,null,null,null,null,null,null,null,null,null,null,null,null,null,null,null,null,null,1.78E-2]
[null,null,null,null,null,null,null,null,null,null,null,null,null,null,null,null,null,null,null,null,null,null,null,null,null,null,null,null,1.8200000000000001E-2]
[null,null,null,null,null,null,null,null,null,null,null,null,null,null,null,null,null,null,null,null,null,null,null,null,null,null,null,null,1.8700000000000001E-2]
[null,null,null,null,null,null,null,null,null,null,null,null,null,null,null,null,null,null,null,null,null,null,null,null,null,null,null,null,1.9099999999999999E-2]
[null,null,null,null,null,null,null,null,null,null,null,null,null,null,null,null,null,null,null,null,null,null,null,null,null,null,null,null,1.9599999999999999E-2]
[null,null,null,null,null,null,null,null,null,null,null,null,null,null,null,null,null,null,null,null,null,null,null,null,null,null,null,null,0.02]
[null,null,null,null,null,null,null,null,null,null,null,null,null,null,null,null,null,null,null,null,null,null,null,null,null,null,null,null,2.0499999999999997E-2]
[null,null,null,null,null,null,null,null,null,null,null,null,null,null,null,null,null,null,null,null,null,null,null,null,null,null,null,null,2.1000000000000001E-2]
[null,null,null,null,null,null,null,null,null,null,null,null,null,null,null,null,null,null,null,null,null,null,null,null,null,null,null,null,2.1499999999999998E-2]
[null,null,null,null,null,null,null,null,null,null,null,null,null,null,null,null,null,null,null,null,null,null,null,null,null,null,null,null,2.2100000000000002E-2]
[null,null,null,null,null,null,null,null,null,null,null,null,null,null,null,null,null,null,null,null,null,null,null,null,null,null,null,null,2.2599999999999999E-2]
[null,null,null,null,null,null,null,null,null,null,null,null,null,null,null,null,null,null,null,null,null,null,null,null,null,null,null,null,2.3199999999999998E-2]
[null,null,null,null,null,null,null,null,null,null,null,null,null,null,null,null,null,null,null,null,null,null,null,null,null,null,null,null,2.3700000000000002E-2]
[null,null,null,null,null,null,null,null,null,null,null,null,null,null,null,null,null,null,null,null,null,null,null,null,null,null,null,null,2.4300000000000002E-2]
[null,null,null,null,null,null,null,null,null,null,null,null,null,null,null,null,null,null,null,null,null,null,null,null,null,null,null,null,2.4900000000000002E-2]
[null,null,null,null,null,null,null,null,null,null,null,null,null,null,null,null,null,null,null,null,null,null,null,null,null,null,null,null,2.5500000000000002E-2]
[null,null,null,null,null,null,null,null,null,null,null,null,null,null,null,null,null,null,null,null,null,null,null,null,null,null,null,null,2.6100000000000002E-2]
[null,null,null,null,null,null,null,null,null,null,null,null,null,null,null,null,null,null,null,null,null,null,null,null,null,null,null,null,2.6700000000000002E-2]
[null,null,null,null,null,null,null,null,null,null,null,null,null,null,null,null,null,null,null,null,null,null,null,null,null,null,null,null,2.7400000000000001E-2]
[null,null,null,null,null,null,null,null,null,null,null,null,null,null,null,null,null,null,null,null,null,null,null,null,null,null,null,null,2.7999999999999997E-2]
[null,null,null,null,null,null,null,null,null,null,null,null,null,null,null,null,null,null,null,null,null,null,null,null,null,null,null,null,2.8700000000000003E-2]
[null,null,null,null,null,null,null,null,null,null,null,null,null,null,null,null,null,null,null,null,null,null,null,null,null,null,null,null,2.9399999999999999E-2]
[null,null,null,null,null,null,null,null,null,null,null,null,null,null,null,null,null,null,null,null,null,null,null,null,null,null,null,null,3.0099999999999998E-2]
[null,null,null,null,null,null,null,null,null,null,null,null,null,null,null,null,null,null,null,null,null,null,null,null,null,null,null,null,{"$f":"AC244/10","v":3.09E-2}]
[null,null,null,null,null,null,null,null,null,null,null,null,null,null,null,null,null,null,null,null,null,null,null,null,null,null,null,null,3.1600000000000003E-2]
[null,null,null,null,null,null,null,null,null,null,null,null,null,null,null,null,null,null,null,null,null,null,null,null,null,null,null,null,3.2399999999999998E-2]
[null,null,null,null,null,null,null,null,null,null,null,null,null,null,null,null,null,null,null,null,null,null,null,null,null,null,null,null,3.3199999999999993E-2]
[null,null,null,null,null,null,null,null,null,null,null,null,null,null,null,null,null,null,null,null,null,null,null,null,null,null,null,null,3.3999999999999996E-2]
[null,null,null,null,null,null,null,null,null,null,null,null,null,null,null,null,null,null,null,null,null,null,null,null,null,null,null,null,3.4799999999999998E-2]
[null,null,null,null,null,null,null,null,null,null,null,null,null,null,null,null,null,null,null,null,null,null,null,null,null,null,null,null,3.5699999999999996E-2]
[null,null,null,null,null,null,null,null,null,null,null,null,null,null,null,null,null,null,null,null,null,null,null,null,null,null,null,null,3.6499999999999998E-2]
[null,null,null,null,null,null,null,null,null,null,null,null,null,null,null,null,null,null,null,null,null,null,null,null,null,null,null,null,3.7400000000000003E-2]
[null,null,null,null,null,null,null,null,null,null,null,null,null,null,null,null,null,null,null,null,null,null,null,null,null,null,null,null,3.8300000000000001E-2]
[null,null,null,null,null,null,null,null,null,null,null,null,null,null,null,null,null,null,null,null,null,null,null,null,null,null,null,null,3.9199999999999999E-2]
[null,null,null,null,null,null,null,null,null,null,null,null,null,null,null,null,null,null,null,null,null,null,null,null,null,null,null,null,4.02E-2]
[null,null,null,null,null,null,null,null,null,null,null,null,null,null,null,null,null,null,null,null,null,null,null,null,null,null,null,null,4.1200000000000001E-2]
[null,null,null,null,null,null,null,null,null,null,null,null,null,null,null,null,null,null,null,null,null,null,null,null,null,null,null,null,4.2200000000000001E-2]
[null,null,null,null,null,null,null,null,null,null,null,null,null,null,null,null,null,null,null,null,null,null,null,null,null,null,null,null,4.3200000000000002E-2]
[null,null,null,null,null,null,null,null,null,null,null,null,null,null,null,null,null,null,null,null,null,null,null,null,null,null,null,null,4.4200000000000003E-2]
[null,null,null,null,null,null,null,null,null,null,null,null,null,null,null,null,null,null,null,null,null,null,null,null,null,null,null,null,4.53E-2]
[null,null,null,null,null,null,null,null,null,null,null,null,null,null,null,null,null,null,null,null,null,null,null,null,null,null,null,null,4.6399999999999997E-2]
[null,null,null,null,null,null,null,null,null,null,null,null,null,null,null,null,null,null,null,null,null,null,null,null,null,null,null,null,4.7500000000000001E-2]
[null,null,null,null,null,null,null,null,null,null,null,null,null,null,null,null,null,null,null,null,null,null,null,null,null,null,null,null,4.87E-2]
[null,null,null,null,null,null,null,null,null,null,null,null,null,null,null,null,null,null,null,null,null,null,null,null,null,null,null,null,4.99E-2]
[null,null,null,null,null,null,null,null,null,null,null,null,null,null,null,null,null,null,null,null,null,null,null,null,null,null,null,null,5.11E-2]
[null,null,null,null,null,null,null,null,null,null,null,null,null,null,null,null,null,null,null,null,null,null,null,null,null,null,null,null,5.2299999999999999E-2]
[null,null,null,null,null,null,null,null,null,null,null,null,null,null,null,null,null,null,null,null,null,null,null,null,null,null,null,null,5.3600000000000002E-2]
[null,null,null,null,null,null,null,null,null,null,null,null,null,null,null,null,null,null,null,null,null,null,null,null,null,null,null,null,5.4900000000000004E-2]
[null,null,null,null,null,null,null,null,null,null,null,null,null,null,null,null,null,null,null,null,null,null,null,null,null,null,null,null,5.6200000000000007E-2]
[null,null,null,null,null,null,null,null,null,null,null,null,null,null,null,null,null,null,null,null,null,null,null,null,null,null,null,null,5.7599999999999998E-2]
[null,null,null,null,null,null,null,null,null,null,null,null,null,null,null,null,null,null,null,null,null,null,null,null,null,null,null,null,5.9000000000000011E-2]
[null,null,null,null,null,null,null,null,null,null,null,null,null,null,null,null,null,null,null,null,null,null,null,null,null,null,null,null,6.0399999999999995E-2]
[null,null,null,null,null,null,null,null,null,null,null,null,null,null,null,null,null,null,null,null,null,null,null,null,null,null,null,null,6.1899999999999997E-2]
[null,null,null,null,null,null,null,null,null,null,null,null,null,null,null,null,null,null,null,null,null,null,null,null,null,null,null,null,6.3399999999999998E-2]
[null,null,null,null,null,null,null,null,null,null,null,null,null,null,null,null,null,null,null,null,null,null,null,null,null,null,null,null,6.4899999999999999E-2]
[null,null,null,null,null,null,null,null,null,null,null,null,null,null,null,null,null,null,null,null,null,null,null,null,null,null,null,null,6.6500000000000004E-2]
[null,null,null,null,null,null,null,null,null,null,null,null,null,null,null,null,null,null,null,null,null,null,null,null,null,null,null,null,6.8099999999999994E-2]
[null,null,null,null,null,null,null,null,null,null,null,null,null,null,null,null,null,null,null,null,null,null,null,null,null,null,null,null,6.9800000000000001E-2]
[null,null,null,null,null,null,null,null,null,null,null,null,null,null,null,null,null,null,null,null,null,null,null,null,null,null,null,null,7.1500000000000008E-2]
[null,null,null,null,null,null,null,null,null,null,null,null,null,null,null,null,null,null,null,null,null,null,null,null,null,null,null,null,7.3200000000000001E-2]
[null,null,null,null,null,null,null,null,null,null,null,null,null,null,null,null,null,null,null,null,null,null,null,null,null,null,null,null,7.4999999999999997E-2]
[null,null,null,null,null,null,null,null,null,null,null,null,null,null,null,null,null,null,null,null,null,null,null,null,null,null,null,null,7.6800000000000007E-2]
[null,null,null,null,null,null,null,null,null,null,null,null,null,null,null,null,null,null,null,null,null,null,null,null,null,null,null,null,7.8700000000000006E-2]
[null,null,null,null,null,null,null,null,null,null,null,null,null,null,null,null,null,null,null,null,null,null,null,null,null,null,null,null,8.0600000000000005E-2]
[null,null,null,null,null,null,null,null,null,null,null,null,null,null,null,null,null,null,null,null,null,null,null,null,null,null,null,null,8.249999999999999E-2]
[null,null,null,null,null,null,null,null,null,null,null,null,null,null,null,null,null,null,null,null,null,null,null,null,null,null,null,null,8.4499999999999992E-2]
[null,null,null,null,null,null,null,null,null,null,null,null,null,null,null,null,null,null,null,null,null,null,null,null,null,null,null,null,8.6599999999999996E-2]
[null,null,null,null,null,null,null,null,null,null,null,null,null,null,null,null,null,null,null,null,null,null,null,null,null,null,null,null,8.8699999999999987E-2]
[null,null,null,null,null,null,null,null,null,null,null,null,null,null,null,null,null,null,null,null,null,null,null,null,null,null,null,null,9.0900000000000009E-2]
[null,null,null,null,null,null,null,null,null,null,null,null,null,null,null,null,null,null,null,null,null,null,null,null,null,null,null,null,9.3100000000000002E-2]
[null,null,null,null,null,null,null,null,null,null,null,null,null,null,null,null,null,null,null,null,null,null,null,null,null,null,null,null,9.5299999999999996E-2]
[null,null,null,null,null,null,null,null,null,null,null,null,null,null,null,null,null,null,null,null,null,null,null,null,null,null,null,null,9.7599999999999992E-2]
[null,null,null,null,null,null,null,null,null,null,null,null,null,null,null,null,null,null,null,null,null,null,null,null,null,null,null,null,0.1]
[null,null,null,null,null,null,null,null,null,null,null,null,null,null,null,null,null,null,null,null,null,null,null,null,null,null,null,null,0.10200000000000001]
[null,null,null,null,null,null,null,null,null,null,null,null,null,null,null,null,null,null,null,null,null,null,null,null,null,null,null,null,0.10500000000000001]
[null,null,null,null,null,null,null,null,null,null,null,null,null,null,null,null,null,null,null,null,null,null,null,null,null,null,null,null,0.10700000000000001]
[null,null,null,null,null,null,null,null,null,null,null,null,null,null,null,null,null,null,null,null,null,null,null,null,null,null,null,null,0.11000000000000001]
[null,null,null,null,null,null,null,null,null,null,null,null,null,null,null,null,null,null,null,null,null,null,null,null,null,null,null,null,0.11299999999999999]
[null,null,null,null,null,null,null,null,null,null,null,null,null,null,null,null,null,null,null,null,null,null,null,null,null,null,null,null,0.11499999999999999]
[null,null,null,null,null,null,null,null,null,null,null,null,null,null,null,null,null,null,null,null,null,null,null,null,null,null,null,null,0.11799999999999999]
[null,null,null,null,null,null,null,null,null,null,null,null,null,null,null,null,null,null,null,null,null,null,null,null,null,null,null,null,0.121]
[null,null,null,null,null,null,null,null,null,null,null,null,null,null,null,null,null,null,null,null,null,null,null,null,null,null,null,null,0.124]
[null,null,null,null,null,null,null,null,null,null,null,null,null,null,null,null,null,null,null,null,null,null,null,null,null,null,null,null,0.127]
[null,null,null,null,null,null,null,null,null,null,null,null,null,null,null,null,null,null,null,null,null,null,null,null,null,null,null,null,0.13]
[null,null,null,null,null,null,null,null,null,null,null,null,null,null,null,null,null,null,null,null,null,null,null,null,null,null,null,null,0.13300000000000001]
[null,null,null,null,null,null,null,null,null,null,null,null,null,null,null,null,null,null,null,null,null,null,null,null,null,null,null,null,0.13700000000000001]
[null,null,null,null,null,null,null,null,null,null,null,null,null,null,null,null,null,null,null,null,null,null,null,null,null,null,null,null,0.13999999999999999]
[null,null,null,null,null,null,null,null,null,null,null,null,null,null,null,null,null,null,null,null,null,null,null,null,null,null,null,null,{"$f":"AC308/10","v":0.14299999999999999}]
[null,null,null,null,null,null,null,null,null,null,null,null,null,null,null,null,null,null,null,null,null,null,null,null,null,null,null,null,0.14699999999999999]
[null,null,null,null,null,null,null,null,null,null,null,null,null,null,null,null,null,null,null,null,null,null,null,null,null,null,null,null,0.15]
[null,null,null,null,null,null,null,null,null,null,null,null,null,null,null,null,null,null,null,null,null,null,null,null,null,null,null,null,0.154]
[null,null,null,null,null,null,null,null,null,null,null,null,null,null,null,null,null,null,null,null,null,null,null,null,null,null,null,null,0.158]
[null,null,null,null,null,null,null,null,null,null,null,null,null,null,null,null,null,null,null,null,null,null,null,null,null,null,null,null,0.16200000000000001]
[null,null,null,null,null,null,null,null,null,null,null,null,null,null,null,null,null,null,null,null,null,null,null,null,null,null,null,null,0.16499999999999998]
[null,null,null,null,null,null,null,null,null,null,null,null,null,null,null,null,null,null,null,null,null,null,null,null,null,null,null,null,0.16899999999999998]
[null,null,null,null,null,null,null,null,null,null,null,null,null,null,null,null,null,null,null,null,null,null,null,null,null,null,null,null,0.17399999999999999]
[null,null,null,null,null,null,null,null,null,null,null,null,null,null,null,null,null,null,null,null,null,null,null,null,null,null,null,null,0.17799999999999999]
[null,null,null,null,null,null,null,null,null,null,null,null,null,null,null,null,null,null,null,null,null,null,null,null,null,null,null,null,0.182]
[null,null,null,null,null,null,null,null,null,null,null,null,null,null,null,null,null,null,null,null,null,null,null,null,null,null,null,null,0.187]
[null,null,null,null,null,null,null,null,null,null,null,null,null,null,null,null,null,null,null,null,null,null,null,null,null,null,null,null,0.191]
[null,null,null,null,null,null,null,null,null,null,null,null,null,null,null,null,null,null,null,null,null,null,null,null,null,null,null,null,0.19600000000000001]
[null,null,null,null,null,null,null,null,null,null,null,null,null,null,null,null,null,null,null,null,null,null,null,null,null,null,null,null,0.2]
[null,null,null,null,null,null,null,null,null,null,null,null,null,null,null,null,null,null,null,null,null,null,null,null,null,null,null,null,0.20499999999999999]
[null,null,null,null,null,null,null,null,null,null,null,null,null,null,null,null,null,null,null,null,null,null,null,null,null,null,null,null,0.21000000000000002]
[null,null,null,null,null,null,null,null,null,null,null,null,null,null,null,null,null,null,null,null,null,null,null,null,null,null,null,null,0.215]
[null,null,null,null,null,null,null,null,null,null,null,null,null,null,null,null,null,null,null,null,null,null,null,null,null,null,null,null,0.221]
[null,null,null,null,null,null,null,null,null,null,null,null,null,null,null,null,null,null,null,null,null,null,null,null,null,null,null,null,0.22599999999999998]
[null,null,null,null,null,null,null,null,null,null,null,null,null,null,null,null,null,null,null,null,null,null,null,null,null,null,null,null,0.23199999999999998]
[null,null,null,null,null,null,null,null,null,null,null,null,null,null,null,null,null,null,null,null,null,null,null,null,null,null,null,null,0.23700000000000002]
[null,null,null,null,null,null,null,null,null,null,null,null,null,null,null,null,null,null,null,null,null,null,null,null,null,null,null,null,0.24300000000000002]
[null,null,null,null,null,null,null,null,null,null,null,null,null,null,null,null,null,null,null,null,null,null,null,null,null,null,null,null,0.24900000000000003]
[null,null,null,null,null,null,null,null,null,null,null,null,null,null,null,null,null,null,null,null,null,null,null,null,null,null,null,null,0.255]
[null,null,null,null,null,null,null,null,null,null,null,null,null,null,null,null,null,null,null,null,null,null,null,null,null,null,null,null,0.26100000000000001]
[null,null,null,null,null,null,null,null,null,null,null,null,null,null,null,null,null,null,null,null,null,null,null,null,null,null,null,null,0.26700000000000002]
[null,null,null,null,null,null,null,null,null,null,null,null,null,null,null,null,null,null,null,null,null,null,null,null,null,null,null,null,0.27400000000000002]
[null,null,null,null,null,null,null,null,null,null,null,null,null,null,null,null,null,null,null,null,null,null,null,null,null,null,null,null,0.27999999999999997]
[null,null,null,null,null,null,null,null,null,null,null,null,null,null,null,null,null,null,null,null,null,null,null,null,null,null,null,null,0.28700000000000003]
[null,null,null,null,null,null,null,null,null,null,null,null,null,null,null,null,null,null,null,null,null,null,null,null,null,null,null,null,0.29399999999999998]
[null,null,null,null,null,null,null,null,null,null,null,null,null,null,null,null,null,null,null,null,null,null,null,null,null,null,null,null,0.30099999999999999]
[null,null,null,null,null,null,null,null,null,null,null,null,null,null,null,null,null,null,null,null,null,null,null,null,null,null,null,null,0.309]
[null,null,null,null,null,null,null,null,null,null,null,null,null,null,null,null,null,null,null,null,null,null,null,null,null,null,null,null,0.316]
[null,null,null,null,null,null,null,null,null,null,null,null,null,null,null,null,null,null,null,null,null,null,null,null,null,null,null,null,0.32400000000000001]
[null,null,null,null,null,null,null,null,null,null,null,null,null,null,null,null,null,null,null,null,null,null,null,null,null,null,null,null,0.33199999999999996]
[null,null,null,null,null,null,null,null,null,null,null,null,null,null,null,null,null,null,null,null,null,null,null,null,null,null,null,null,0.33999999999999997]
[null,null,null,null,null,null,null,null,null,null,null,null,null,null,null,null,null,null,null,null,null,null,null,null,null,null,null,null,0.34799999999999998]
[null,null,null,null,null,null,null,null,null,null,null,null,null,null,null,null,null,null,null,null,null,null,null,null,null,null,null,null,0.35699999999999998]
[null,null,null,null,null,null,null,null,null,null,null,null,null,null,null,null,null,null,null,null,null,null,null,null,null,null,null,null,0.36499999999999999]
[null,null,null,null,null,null,null,null,null,null,null,null,null,null,null,null,null,null,null,null,null,null,null,null,null,null,null,null,0.374]
[null,null,null,null,null,null,null,null,null,null,null,null,null,null,null,null,null,null,null,null,null,null,null,null,null,null,null,null,0.38300000000000001]
[null,null,null,null,null,null,null,null,null,null,null,null,null,null,null,null,null,null,null,null,null,null,null,null,null,null,null,null,0.39200000000000002]
[null,null,null,null,null,null,null,null,null,null,null,null,null,null,null,null,null,null,null,null,null,null,null,null,null,null,null,null,0.40199999999999997]
[null,null,null,null,null,null,null,null,null,null,null,null,null,null,null,null,null,null,null,null,null,null,null,null,null,null,null,null,0.41200000000000003]
[null,null,null,null,null,null,null,null,null,null,null,null,null,null,null,null,null,null,null,null,null,null,null,null,null,null,null,null,0.42199999999999999]
[null,null,null,null,null,null,null,null,null,null,null,null,null,null,null,null,null,null,null,null,null,null,null,null,null,null,null,null,0.43200000000000005]
[null,null,null,null,null,null,null,null,null,null,null,null,null,null,null,null,null,null,null,null,null,null,null,null,null,null,null,null,0.442]
[null,null,null,null,null,null,null,null,null,null,null,null,null,null,null,null,null,null,null,null,null,null,null,null,null,null,null,null,0.45300000000000001]
[null,null,null,null,null,null,null,null,null,null,null,null,null,null,null,null,null,null,null,null,null,null,null,null,null,null,null,null,0.46399999999999997]
[null,null,null,null,null,null,null,null,null,null,null,null,null,null,null,null,null,null,null,null,null,null,null,null,null,null,null,null,0.47499999999999998]
[null,null,null,null,null,null,null,null,null,null,null,null,null,null,null,null,null,null,null,null,null,null,null,null,null,null,null,null,0.48699999999999999]
[null,null,null,null,null,null,null,null,null,null,null,null,null,null,null,null,null,null,null,null,null,null,null,null,null,null,null,null,0.499]
[null,null,null,null,null,null,null,null,null,null,null,null,null,null,null,null,null,null,null,null,null,null,null,null,null,null,null,null,0.51100000000000001]
[null,null,null,null,null,null,null,null,null,null,null,null,null,null,null,null,null,null,null,null,null,null,null,null,null,null,null,null,0.52300000000000002]
[null,null,null,null,null,null,null,null,null,null,null,null,null,null,null,null,null,null,null,null,null,null,null,null,null,null,null,null,0.53600000000000003]
[null,null,null,null,null,null,null,null,null,null,null,null,null,null,null,null,null,null,null,null,null,null,null,null,null,null,null,null,0.54900000000000004]
[null,null,null,null,null,null,null,null,null,null,null,null,null,null,null,null,null,null,null,null,null,null,null,null,null,null,null,null,0.56200000000000006]
[null,null,null,null,null,null,null,null,null,null,null,null,null,null,null,null,null,null,null,null,null,null,null,null,null,null,null,null,0.57599999999999996]
[null,null,null,null,null,null,null,null,null,null,null,null,null,null,null,null,null,null,null,null,null,null,null,null,null,null,null,null,0.59000000000000008]
[null,null,null,null,null,null,null,null,null,null,null,null,null,null,null,null,null,null,null,null,null,null,null,null,null,null,null,null,0.60399999999999998]
[null,null,null,null,null,null,null,null,null,null,null,null,null,null,null,null,null,null,null,null,null,null,null,null,null,null,null,null,0.61899999999999999]
[null,null,null,null,null,null,null,null,null,null,null,null,null,null,null,null,null,null,null,null,null,null,null,null,null,null,null,null,0.63400000000000001]
[null,null,null,null,null,null,null,null,null,null,null,null,null,null,null,null,null,null,null,null,null,null,null,null,null,null,null,null,0.64900000000000002]
[null,null,null,null,null,null,null,null,null,null,null,null,null,null,null,null,null,null,null,null,null,null,null,null,null,null,null,null,{"$f":"AC372/10","v":0.66500000000000004}]
[null,null,null,null,null,null,null,null,null,null,null,null,null,null,null,null,null,null,null,null,null,null,null,null,null,null,null,null,0.68099999999999994]
[null,null,null,null,null,null,null,null,null,null,null,null,null,null,null,null,null,null,null,null,null,null,null,null,null,null,null,null,0.69800000000000006]
[null,null,null,null,null,null,null,null,null,null,null,null,null,null,null,null,null,null,null,null,null,null,null,null,null,null,null,null,0.71500000000000008]
[null,null,null,null,null,null,null,null,null,null,null,null,null,null,null,null,null,null,null,null,null,null,null,null,null,null,null,null,0.73199999999999998]
[null,null,null,null,null,null,null,null,null,null,null,null,null,null,null,null,null,null,null,null,null,null,null,null,null,null,null,null,0.75]
[null,null,null,null,null,null,null,null,null,null,null,null,null,null,null,null,null,null,null,null,null,null,null,null,null,null,null,null,0.76800000000000002]
[null,null,null,null,null,null,null,null,null,null,null,null,null,null,null,null,null,null,null,null,null,null,null,null,null,null,null,null,0.78700000000000003]
[null,null,null,null,null,null,null,null,null,null,null,null,null,null,null,null,null,null,null,null,null,null,null,null,null,null,null,null,0.80600000000000005]
[null,null,null,null,null,null,null,null,null,null,null,null,null,null,null,null,null,null,null,null,null,null,null,null,null,null,null,null,0.82499999999999996]
[null,null,null,null,null,null,null,null,null,null,null,null,null,null,null,null,null,null,null,null,null,null,null,null,null,null,null,null,0.84499999999999997]
[null,null,null,null,null,null,null,null,null,null,null,null,null,null,null,null,null,null,null,null,null,null,null,null,null,null,null,null,0.86599999999999999]
[null,null,null,null,null,null,null,null,null,null,null,null,null,null,null,null,null,null,null,null,null,null,null,null,null,null,null,null,0.8869999999999999]
[null,null,null,null,null,null,null,null,null,null,null,null,null,null,null,null,null,null,null,null,null,null,null,null,null,null,null,null,0.90900000000000003]
[null,null,null,null,null,null,null,null,null,null,null,null,null,null,null,null,null,null,null,null,null,null,null,null,null,null,null,null,0.93100000000000005]
[null,null,null,null,null,null,null,null,null,null,null,null,null,null,null,null,null,null,null,null,null,null,null,null,null,null,null,null,0.95299999999999996]
[null,null,null,null,null,null,null,null,null,null,null,null,null,null,null,null,null,null,null,null,null,null,null,null,null,null,null,null,0.97599999999999998]
[null,null,null,null,null,null,null,null,null,null,null,null,null,null,null,null,null,null,null,null,null,null,null,null,null,null,null,null,1]
[null,null,null,null,null,null,null,null,null,null,null,null,null,null,null,null,null,null,null,null,null,null,null,null,null,null,null,null,1.02]
[null,null,null,null,null,null,null,null,null,null,null,null,null,null,null,null,null,null,null,null,null,null,null,null,null,null,null,null,1.05]
[null,null,null,null,null,null,null,null,null,null,null,null,null,null,null,null,null,null,null,null,null,null,null,null,null,null,null,null,1.07]
[null,null,null,null,null,null,null,null,null,null,null,null,null,null,null,null,null,null,null,null,null,null,null,null,null,null,null,null,1.1000000000000001]
[null,null,null,null,null,null,null,null,null,null,null,null,null,null,null,null,null,null,null,null,null,null,null,null,null,null,null,null,1.1299999999999999]
[null,null,null,null,null,null,null,null,null,null,null,null,null,null,null,null,null,null,null,null,null,null,null,null,null,null,null,null,1.1499999999999999]
[null,null,null,null,null,null,null,null,null,null,null,null,null,null,null,null,null,null,null,null,null,null,null,null,null,null,null,null,1.18]
[null,null,null,null,null,null,null,null,null,null,null,null,null,null,null,null,null,null,null,null,null,null,null,null,null,null,null,null,1.21]
[null,null,null,null,null,null,null,null,null,null,null,null,null,null,null,null,null,null,null,null,null,null,null,null,null,null,null,null,1.24]
[null,null,null,null,null,null,null,null,null,null,null,null,null,null,null,null,null,null,null,null,null,null,null,null,null,null,null,null,1.27]
[null,null,null,null,null,null,null,null,null,null,null,null,null,null,null,null,null,null,null,null,null,null,null,null,null,null,null,null,1.3]
[null,null,null,null,null,null,null,null,null,null,null,null,null,null,null,null,null,null,null,null,null,null,null,null,null,null,null,null,1.33]
[null,null,null,null,null,null,null,null,null,null,null,null,null,null,null,null,null,null,null,null,null,null,null,null,null,null,null,null,1.37]
[null,null,null,null,null,null,null,null,null,null,null,null,null,null,null,null,null,null,null,null,null,null,null,null,null,null,null,null,1.4]
[null,null,null,null,null,null,null,null,null,null,null,null,null,null,null,null,null,null,null,null,null,null,null,null,null,null,null,null,1.43]
[null,null,null,null,null,null,null,null,null,null,null,null,null,null,null,null,null,null,null,null,null,null,null,null,null,null,null,null,1.47]
[null,null,null,null,null,null,null,null,null,null,null,null,null,null,null,null,null,null,null,null,null,null,null,null,null,null,null,null,1.5]
[null,null,null,null,null,null,null,null,null,null,null,null,null,null,null,null,null,null,null,null,null,null,null,null,null,null,null,null,1.54]
[null,null,null,null,null,null,null,null,null,null,null,null,null,null,null,null,null,null,null,null,null,null,null,null,null,null,null,null,1.58]
[null,null,null,null,null,null,null,null,null,null,null,null,null,null,null,null,null,null,null,null,null,null,null,null,null,null,null,null,1.62]
[null,null,null,null,null,null,null,null,null,null,null,null,null,null,null,null,null,null,null,null,null,null,null,null,null,null,null,null,1.65]
[null,null,null,null,null,null,null,null,null,null,null,null,null,null,null,null,null,null,null,null,null,null,null,null,null,null,null,null,1.69]
[null,null,null,null,null,null,null,null,null,null,null,null,null,null,null,null,null,null,null,null,null,null,null,null,null,null,null,null,1.74]
[null,null,null,null,null,null,null,null,null,null,null,null,null,null,null,null,null,null,null,null,null,null,null,null,null,null,null,null,1.78]
[null,null,null,null,null,null,null,null,null,null,null,null,null,null,null,null,null,null,null,null,null,null,null,null,null,null,null,null,1.82]
[null,null,null,null,null,null,null,null,null,null,null,null,null,null,null,null,null,null,null,null,null,null,null,null,null,null,null,null,1.87]
[null,null,null,null,null,null,null,null,null,null,null,null,null,null,null,null,null,null,null,null,null,null,null,null,null,null,null,null,1.91]
[null,null,null,null,null,null,null,null,null,null,null,null,null,null,null,null,null,null,null,null,null,null,null,null,null,null,null,null,1.96]
[null,null,null,null,null,null,null,null,null,null,null,null,null,null,null,null,null,null,null,null,null,null,null,null,null,null,null,null,2]
[null,null,null,null,null,null,null,null,null,null,null,null,null,null,null,null,null,null,null,null,null,null,null,null,null,null,null,null,2.0499999999999998]
[null,null,null,null,null,null,null,null,null,null,null,null,null,null,null,null,null,null,null,null,null,null,null,null,null,null,null,null,2.1]
[null,null,null,null,null,null,null,null,null,null,null,null,null,null,null,null,null,null,null,null,null,null,null,null,null,null,null,null,2.15]
[null,null,null,null,null,null,null,null,null,null,null,null,null,null,null,null,null,null,null,null,null,null,null,null,null,null,null,null,2.21]
[null,null,null,null,null,null,null,null,null,null,null,null,null,null,null,null,null,null,null,null,null,null,null,null,null,null,null,null,2.2599999999999998]
[null,null,null,null,null,null,null,null,null,null,null,null,null,null,null,null,null,null,null,null,null,null,null,null,null,null,null,null,2.3199999999999998]
[null,null,null,null,null,null,null,null,null,null,null,null,null,null,null,null,null,null,null,null,null,null,null,null,null,null,null,null,2.37]
[null,null,null,null,null,null,null,null,null,null,null,null,null,null,null,null,null,null,null,null,null,null,null,null,null,null,null,null,2.4300000000000002]
[null,null,null,null,null,null,null,null,null,null,null,null,null,null,null,null,null,null,null,null,null,null,null,null,null,null,null,null,2.4900000000000002]
[null,null,null,null,null,null,null,null,null,null,null,null,null,null,null,null,null,null,null,null,null,null,null,null,null,null,null,null,2.5499999999999998]
[null,null,null,null,null,null,null,null,null,null,null,null,null,null,null,null,null,null,null,null,null,null,null,null,null,null,null,null,2.61]
[null,null,null,null,null,null,null,null,null,null,null,null,null,null,null,null,null,null,null,null,null,null,null,null,null,null,null,null,2.67]
[null,null,null,null,null,null,null,null,null,null,null,null,null,null,null,null,null,null,null,null,null,null,null,null,null,null,null,null,2.74]
[null,null,null,null,null,null,null,null,null,null,null,null,null,null,null,null,null,null,null,null,null,null,null,null,null,null,null,null,2.8]
[null,null,null,null,null,null,null,null,null,null,null,null,null,null,null,null,null,null,null,null,null,null,null,null,null,null,null,null,2.87]
[null,null,null,null,null,null,null,null,null,null,null,null,null,null,null,null,null,null,null,null,null,null,null,null,null,null,null,null,2.94]
[null,null,null,null,null,null,null,null,null,null,null,null,null,null,null,null,null,null,null,null,null,null,null,null,null,null,null,null,3.01]
[null,null,null,null,null,null,null,null,null,null,null,null,null,null,null,null,null,null,null,null,null,null,null,null,null,null,null,null,3.09]
[null,null,null,null,null,null,null,null,null,null,null,null,null,null,null,null,null,null,null,null,null,null,null,null,null,null,null,null,3.16]
[null,null,null,null,null,null,null,null,null,null,null,null,null,null,null,null,null,null,null,null,null,null,null,null,null,null,null,null,3.24]
[null,null,null,null,null,null,null,null,null,null,null,null,null,null,null,null,null,null,null,null,null,null,null,null,null,null,null,null,3.32]
[null,null,null,null,null,null,null,null,null,null,null,null,null,null,null,null,null,null,null,null,null,null,null,null,null,null,null,null,3.4]
[null,null,null,null,null,null,null,null,null,null,null,null,null,null,null,null,null,null,null,null,null,null,null,null,null,null,null,null,3.48]
[null,null,null,null,null,null,null,null,null,null,null,null,null,null,null,null,null,null,null,null,null,null,null,null,null,null,null,null,3.57]
[null,null,null,null,null,null,null,null,null,null,null,null,null,null,null,null,null,null,null,null,null,null,null,null,null,null,null,null,3.65]
[null,null,null,null,null,null,null,null,null,null,null,null,null,null,null,null,null,null,null,null,null,null,null,null,null,null,null,null,3.74]
[null,null,null,null,null,null,null,null,null,null,null,null,null,null,null,null,null,null,null,null,null,null,null,null,null,null,null,null,3.83]
[null,null,null,null,null,null,null,null,null,null,null,null,null,null,null,null,null,null,null,null,null,null,null,null,null,null,null,null,3.92]
[null,null,null,null,null,null,null,null,null,null,null,null,null,null,null,null,null,null,null,null,null,null,null,null,null,null,null,null,4.0199999999999996]
[null,null,null,null,null,null,null,null,null,null,null,null,null,null,null,null,null,null,null,null,null,null,null,null,null,null,null,null,4.12]
[null,null,null,null,null,null,null,null,null,null,null,null,null,null,null,null,null,null,null,null,null,null,null,null,null,null,null,null,4.22]
[null,null,null,null,null,null,null,null,null,null,null,null,null,null,null,null,null,null,null,null,null,null,null,null,null,null,null,null,4.32]
[null,null,null,null,null,null,null,null,null,null,null,null,null,null,null,null,null,null,null,null,null,null,null,null,null,null,null,null,4.42]
[null,null,null,null,null,null,null,null,null,null,null,null,null,null,null,null,null,null,null,null,null,null,null,null,null,null,null,null,4.53]
[null,null,null,null,null,null,null,null,null,null,null,null,null,null,null,null,null,null,null,null,null,null,null,null,null,null,null,null,4.6399999999999997]
[null,null,null,null,null,null,null,null,null,null,null,null,null,null,null,null,null,null,null,null,null,null,null,null,null,null,null,null,4.75]
[null,null,null,null,null,null,null,null,null,null,null,null,null,null,null,null,null,null,null,null,null,null,null,null,null,null,null,null,4.87]
[null,null,null,null,null,null,null,null,null,null,null,null,null,null,null,null,null,null,null,null,null,null,null,null,null,null,null,null,4.99]
[null,null,null,null,null,null,null,null,null,null,null,null,null,null,null,null,null,null,null,null,null,null,null,null,null,null,null,null,5.1100000000000003]
[null,null,null,null,null,null,null,null,null,null,null,null,null,null,null,null,null,null,null,null,null,null,null,null,null,null,null,null,5.23]
[null,null,null,null,null,null,null,null,null,null,null,null,null,null,null,null,null,null,null,null,null,null,null,null,null,null,null,null,5.36]
[null,null,null,null,null,null,null,null,null,null,null,null,null,null,null,null,null,null,null,null,null,null,null,null,null,null,null,null,5.49]
[null,null,null,null,null,null,null,null,null,null,null,null,null,null,null,null,null,null,null,null,null,null,null,null,null,null,null,null,5.62]
[null,null,null,null,null,null,null,null,null,null,null,null,null,null,null,null,null,null,null,null,null,null,null,null,null,null,null,null,5.76]
[null,null,null,null,null,null,null,null,null,null,null,null,null,null,null,null,null,null,null,null,null,null,null,null,null,null,null,null,5.9]
[null,null,null,null,null,null,null,null,null,null,null,null,null,null,null,null,null,null,null,null,null,null,null,null,null,null,null,null,6.04]
[null,null,null,null,null,null,null,null,null,null,null,null,null,null,null,null,null,null,null,null,null,null,null,null,null,null,null,null,6.19]
[null,null,null,null,null,null,null,null,null,null,null,null,null,null,null,null,null,null,null,null,null,null,null,null,null,null,null,null,6.34]
[null,null,null,null,null,null,null,null,null,null,null,null,null,null,null,null,null,null,null,null,null,null,null,null,null,null,null,null,6.49]
[null,null,null,null,null,null,null,null,null,null,null,null,null,null,null,null,null,null,null,null,null,null,null,null,null,null,null,null,6.65]
[null,null,null,null,null,null,null,null,null,null,null,null,null,null,null,null,null,null,null,null,null,null,null,null,null,null,null,null,6.81]
[null,null,null,null,null,null,null,null,null,null,null,null,null,null,null,null,null,null,null,null,null,null,null,null,null,null,null,null,6.98]
[null,null,null,null,null,null,null,null,null,null,null,null,null,null,null,null,null,null,null,null,null,null,null,null,null,null,null,null,7.15]
[null,null,null,null,null,null,null,null,null,null,null,null,null,null,null,null,null,null,null,null,null,null,null,null,null,null,null,null,7.32]
[null,null,null,null,null,null,null,null,null,null,null,null,null,null,null,null,null,null,null,null,null,null,null,null,null,null,null,null,7.5]
[null,null,null,null,null,null,null,null,null,null,null,null,null,null,null,null,null,null,null,null,null,null,null,null,null,null,null,null,7.68]
[null,null,null,null,null,null,null,null,null,null,null,null,null,null,null,null,null,null,null,null,null,null,null,null,null,null,null,null,7.87]
[null,null,null,null,null,null,null,null,null,null,null,null,null,null,null,null,null,null,null,null,null,null,null,null,null,null,null,null,8.06]
[null,null,null,null,null,null,null,null,null,null,null,null,null,null,null,null,null,null,null,null,null,null,null,null,null,null,null,null,8.25]
[null,null,null,null,null,null,null,null,null,null,null,null,null,null,null,null,null,null,null,null,null,null,null,null,null,null,null,null,8.4499999999999993]
[null,null,null,null,null,null,null,null,null,null,null,null,null,null,null,null,null,null,null,null,null,null,null,null,null,null,null,null,8.66]
[null,null,null,null,null,null,null,null,null,null,null,null,null,null,null,null,null,null,null,null,null,null,null,null,null,null,null,null,8.8699999999999992]
[null,null,null,null,null,null,null,null,null,null,null,null,null,null,null,null,null,null,null,null,null,null,null,null,null,null,null,null,9.09]
[null,null,null,null,null,null,null,null,null,null,null,null,null,null,null,null,null,null,null,null,null,null,null,null,null,null,null,null,9.31]
[null,null,null,null,null,null,null,null,null,null,null,null,null,null,null,null,null,null,null,null,null,null,null,null,null,null,null,null,9.5299999999999994]
[null,null,null,null,null,null,null,null,null,null,null,null,null,null,null,null,null,null,null,null,null,null,null,null,null,null,null,null,9.76]
[null,null,null,null,null,null,null,null,null,null,null,null,null,null,null,null,null,null,null,null,null,null,null,null,null,null,null,null,10]
[null,null,null,null,null,null,null,null,null,null,null,null,null,null,null,null,null,null,null,null,null,null,null,null,null,null,null,null,10.199999999999999]
[null,null,null,null,null,null,null,null,null,null,null,null,null,null,null,null,null,null,null,null,null,null,null,null,null,null,null,null,10.5]
[null,null,null,null,null,null,null,null,null,null,null,null,null,null,null,null,null,null,null,null,null,null,null,null,null,null,null,null,10.7]
[null,null,null,null,null,null,null,null,null,null,null,null,null,null,null,null,null,null,null,null,null,null,null,null,null,null,null,null,11]
[null,null,null,null,null,null,null,null,null,null,null,null,null,null,null,null,null,null,null,null,null,null,null,null,null,null,null,null,11.3]
[null,null,null,null,null,null,null,null,null,null,null,null,null,null,null,null,null,null,null,null,null,null,null,null,null,null,null,null,11.5]
[null,null,null,null,null,null,null,null,null,null,null,null,null,null,null,null,null,null,null,null,null,null,null,null,null,null,null,null,11.8]
[null,null,null,null,null,null,null,null,null,null,null,null,null,null,null,null,null,null,null,null,null,null,null,null,null,null,null,null,12.1]
[null,null,null,null,null,null,null,null,null,null,null,null,null,null,null,null,null,null,null,null,null,null,null,null,null,null,null,null,12.4]
[null,null,null,null,null,null,null,null,null,null,null,null,null,null,null,null,null,null,null,null,null,null,null,null,null,null,null,null,12.7]
[null,null,null,null,null,null,null,null,null,null,null,null,null,null,null,null,null,null,null,null,null,null,null,null,null,null,null,null,13]
[null,null,null,null,null,null,null,null,null,null,null,null,null,null,null,null,null,null,null,null,null,null,null,null,null,null,null,null,13.3]
[null,null,null,null,null,null,null,null,null,null,null,null,null,null,null,null,null,null,null,null,null,null,null,null,null,null,null,null,13.7]
[null,null,null,null,null,null,null,null,null,null,null,null,null,null,null,null,null,null,null,null,null,null,null,null,null,null,null,null,14]
[null,null,null,null,null,null,null,null,null,null,null,null,null,null,null,null,null,null,null,null,null,null,null,null,null,null,null,null,14.3]
[null,null,null,null,null,null,null,null,null,null,null,null,null,null,null,null,null,null,null,null,null,null,null,null,null,null,null,null,14.7]
[null,null,null,null,null,null,null,null,null,null,null,null,null,null,null,null,null,null,null,null,null,null,null,null,null,null,null,null,15]
[null,null,null,null,null,null,null,null,null,null,null,null,null,null,null,null,null,null,null,null,null,null,null,null,null,null,null,null,15.4]
[null,null,null,null,null,null,null,null,null,null,null,null,null,null,null,null,null,null,null,null,null,null,null,null,null,null,null,null,15.8]
[null,null,null,null,null,null,null,null,null,null,null,null,null,null,null,null,null,null,null,null,null,null,null,null,null,null,null,null,16.2]
[null,null,null,null,null,null,null,null,null,null,null,null,null,null,null,null,null,null,null,null,null,null,null,null,null,null,null,null,16.5]
[null,null,null,null,null,null,null,null,null,null,null,null,null,null,null,null,null,null,null,null,null,null,null,null,null,null,null,null,16.899999999999999]
[null,null,null,null,null,null,null,null,null,null,null,null,null,null,null,null,null,null,null,null,null,null,null,null,null,null,null,null,17.399999999999999]
[null,null,null,null,null,null,null,null,null,null,null,null,null,null,null,null,null,null,null,null,null,null,null,null,null,null,null,null,17.8]
[null,null,null,null,null,null,null,null,null,null,null,null,null,null,null,null,null,null,null,null,null,null,null,null,null,null,null,null,18.2]
[null,null,null,null,null,null,null,null,null,null,null,null,null,null,null,null,null,null,null,null,null,null,null,null,null,null,null,null,18.7]
[null,null,null,null,null,null,null,null,null,null,null,null,null,null,null,null,null,null,null,null,null,null,null,null,null,null,null,null,19.100000000000001]
[null,null,null,null,null,null,null,null,null,null,null,null,null,null,null,null,null,null,null,null,null,null,null,null,null,null,null,null,19.600000000000001]
[null,null,null,null,null,null,null,null,null,null,null,null,null,null,null,null,null,null,null,null,null,null,null,null,null,null,null,null,20]
[null,null,null,null,null,null,null,null,null,null,null,null,null,null,null,null,null,null,null,null,null,null,null,null,null,null,null,null,20.5]
[null,null,null,null,null,null,null,null,null,null,null,null,null,null,null,null,null,null,null,null,null,null,null,null,null,null,null,null,21]
[null,null,null,null,null,null,null,null,null,null,null,null,null,null,null,null,null,null,null,null,null,null,null,null,null,null,null,null,21.5]
[null,null,null,null,null,null,null,null,null,null,null,null,null,null,null,null,null,null,null,null,null,null,null,null,null,null,null,null,22.1]
[null,null,null,null,null,null,null,null,null,null,null,null,null,null,null,null,null,null,null,null,null,null,null,null,null,null,null,null,22.6]
[null,null,null,null,null,null,null,null,null,null,null,null,null,null,null,null,null,null,null,null,null,null,null,null,null,null,null,null,23.2]
[null,null,null,null,null,null,null,null,null,null,null,null,null,null,null,null,null,null,null,null,null,null,null,null,null,null,null,null,23.7]
[null,null,null,null,null,null,null,null,null,null,null,null,null,null,null,null,null,null,null,null,null,null,null,null,null,null,null,null,24.3]
[null,null,null,null,null,null,null,null,null,null,null,null,null,null,null,null,null,null,null,null,null,null,null,null,null,null,null,null,24.9]
[null,null,null,null,null,null,null,null,null,null,null,null,null,null,null,null,null,null,null,null,null,null,null,null,null,null,null,null,25.5]
[null,null,null,null,null,null,null,null,null,null,null,null,null,null,null,null,null,null,null,null,null,null,null,null,null,null,null,null,26.1]
[null,null,null,null,null,null,null,null,null,null,null,null,null,null,null,null,null,null,null,null,null,null,null,null,null,null,null,null,26.7]
[null,null,null,null,null,null,null,null,null,null,null,null,null,null,null,null,null,null,null,null,null,null,null,null,null,null,null,null,27.4]
[null,null,null,null,null,null,null,null,null,null,null,null,null,null,null,null,null,null,null,null,null,null,null,null,null,null,null,null,28]
[null,null,null,null,null,null,null,null,null,null,null,null,null,null,null,null,null,null,null,null,null,null,null,null,null,null,null,null,28.7]
[null,null,null,null,null,null,null,null,null,null,null,null,null,null,null,null,null,null,null,null,null,null,null,null,null,null,null,null,29.4]
[null,null,null,null,null,null,null,null,null,null,null,null,null,null,null,null,null,null,null,null,null,null,null,null,null,null,null,null,30.1]
[null,null,null,null,null,null,null,null,null,null,null,null,null,null,null,null,null,null,null,null,null,null,null,null,null,null,null,null,30.9]
[null,null,null,null,null,null,null,null,null,null,null,null,null,null,null,null,null,null,null,null,null,null,null,null,null,null,null,null,31.6]
[null,null,null,null,null,null,null,null,null,null,null,null,null,null,null,null,null,null,null,null,null,null,null,null,null,null,null,null,32.4]
[null,null,null,null,null,null,null,null,null,null,null,null,null,null,null,null,null,null,null,null,null,null,null,null,null,null,null,null,33.200000000000003]
[null,null,null,null,null,null,null,null,null,null,null,null,null,null,null,null,null,null,null,null,null,null,null,null,null,null,null,null,34]
[null,null,null,null,null,null,null,null,null,null,null,null,null,null,null,null,null,null,null,null,null,null,null,null,null,null,null,null,34.799999999999997]
[null,null,null,null,null,null,null,null,null,null,null,null,null,null,null,null,null,null,null,null,null,null,null,null,null,null,null,null,35.700000000000003]
[null,null,null,null,null,null,null,null,null,null,null,null,null,null,null,null,null,null,null,null,null,null,null,null,null,null,null,null,36.5]
[null,null,null,null,null,null,null,null,null,null,null,null,null,null,null,null,null,null,null,null,null,null,null,null,null,null,null,null,37.4]
[null,null,null,null,null,null,null,null,null,null,null,null,null,null,null,null,null,null,null,null,null,null,null,null,null,null,null,null,38.299999999999997]
[null,null,null,null,null,null,null,null,null,null,null,null,null,null,null,null,null,null,null,null,null,null,null,null,null,null,null,null,39.200000000000003]
[null,null,null,null,null,null,null,null,null,null,null,null,null,null,null,null,null,null,null,null,null,null,null,null,null,null,null,null,40.200000000000003]
[null,null,null,null,null,null,null,null,null,null,null,null,null,null,null,null,null,null,null,null,null,null,null,null,null,null,null,null,41.2]
[null,null,null,null,null,null,null,null,null,null,null,null,null,null,null,null,null,null,null,null,null,null,null,null,null,null,null,null,42.2]
[null,null,null,null,null,null,null,null,null,null,null,null,null,null,null,null,null,null,null,null,null,null,null,null,null,null,null,null,43.2]
[null,null,null,null,null,null,null,null,null,null,null,null,null,null,null,null,null,null,null,null,null,null,null,null,null,null,null,null,44.2]
[null,null,null,null,null,null,null,null,null,null,null,null,null,null,null,null,null,null,null,null,null,null,null,null,null,null,null,null,45.3]
[null,null,null,null,null,null,null,null,null,null,null,null,null,null,null,null,null,null,null,null,null,null,null,null,null,null,null,null,46.4]
[null,null,null,null,null,null,null,null,null,null,null,null,null,null,null,null,null,null,null,null,null,null,null,null,null,null,null,null,47.5]
[null,null,null,null,null,null,null,null,null,null,null,null,null,null,null,null,null,null,null,null,null,null,null,null,null,null,null,null,48.7]
[null,null,null,null,null,null,null,null,null,null,null,null,null,null,null,null,null,null,null,null,null,null,null,null,null,null,null,null,49.9]
[null,null,null,null,null,null,null,null,null,null,null,null,null,null,null,null,null,null,null,null,null,null,null,null,null,null,null,null,51.1]
[null,null,null,null,null,null,null,null,null,null,null,null,null,null,null,null,null,null,null,null,null,null,null,null,null,null,null,null,52.3]
[null,null,null,null,null,null,null,null,null,null,null,null,null,null,null,null,null,null,null,null,null,null,null,null,null,null,null,null,53.6]
[null,null,null,null,null,null,null,null,null,null,null,null,null,null,null,null,null,null,null,null,null,null,null,null,null,null,null,null,54.9]
[null,null,null,null,null,null,null,null,null,null,null,null,null,null,null,null,null,null,null,null,null,null,null,null,null,null,null,null,56.2]
[null,null,null,null,null,null,null,null,null,null,null,null,null,null,null,null,null,null,null,null,null,null,null,null,null,null,null,null,57.6]
[null,null,null,null,null,null,null,null,null,null,null,null,null,null,null,null,null,null,null,null,null,null,null,null,null,null,null,null,59]
[null,null,null,null,null,null,null,null,null,null,null,null,null,null,null,null,null,null,null,null,null,null,null,null,null,null,null,null,60.4]
[null,null,null,null,null,null,null,null,null,null,null,null,null,null,null,null,null,null,null,null,null,null,null,null,null,null,null,null,61.9]
[null,null,null,null,null,null,null,null,null,null,null,null,null,null,null,null,null,null,null,null,null,null,null,null,null,null,null,null,63.4]
[null,null,null,null,null,null,null,null,null,null,null,null,null,null,null,null,null,null,null,null,null,null,null,null,null,null,null,null,64.900000000000006]
[null,null,null,null,null,null,null,null,null,null,null,null,null,null,null,null,null,null,null,null,null,null,null,null,null,null,null,null,66.5]
[null,null,null,null,null,null,null,null,null,null,null,null,null,null,null,null,null,null,null,null,null,null,null,null,null,null,null,null,68.099999999999994]
[null,null,null,null,null,null,null,null,null,null,null,null,null,null,null,null,null,null,null,null,null,null,null,null,null,null,null,null,69.8]
[null,null,null,null,null,null,null,null,null,null,null,null,null,null,null,null,null,null,null,null,null,null,null,null,null,null,null,null,71.5]
[null,null,null,null,null,null,null,null,null,null,null,null,null,null,null,null,null,null,null,null,null,null,null,null,null,null,null,null,73.2]
[null,null,null,null,null,null,null,null,null,null,null,null,null,null,null,null,null,null,null,null,null,null,null,null,null,null,null,null,75]
[null,null,null,null,null,null,null,null,null,null,null,null,null,null,null,null,null,null,null,null,null,null,null,null,null,null,null,null,76.8]
[null,null,null,null,null,null,null,null,null,null,null,null,null,null,null,null,null,null,null,null,null,null,null,null,null,null,null,null,78.7]
[null,null,null,null,null,null,null,null,null,null,null,null,null,null,null,null,null,null,null,null,null,null,null,null,null,null,null,null,80.599999999999994]
[null,null,null,null,null,null,null,null,null,null,null,null,null,null,null,null,null,null,null,null,null,null,null,null,null,null,null,null,82.5]
[null,null,null,null,null,null,null,null,null,null,null,null,null,null,null,null,null,null,null,null,null,null,null,null,null,null,null,null,84.5]
[null,null,null,null,null,null,null,null,null,null,null,null,null,null,null,null,null,null,null,null,null,null,null,null,null,null,null,null,86.6]
[null,null,null,null,null,null,null,null,null,null,null,null,null,null,null,null,null,null,null,null,null,null,null,null,null,null,null,null,88.7]
[null,null,null,null,null,null,null,null,null,null,null,null,null,null,null,null,null,null,null,null,null,null,null,null,null,null,null,null,90.9]
[null,null,null,null,null,null,null,null,null,null,null,null,null,null,null,null,null,null,null,null,null,null,null,null,null,null,null,null,93.1]
[null,null,null,null,null,null,null,null,null,null,null,null,null,null,null,null,null,null,null,null,null,null,null,null,null,null,null,null,95.3]
[null,null,null,null,null,null,null,null,null,null,null,null,null,null,null,null,null,null,null,null,null,null,null,null,null,null,null,null,97.6]
[null,null,null,null,null,null,null,null,null,null,null,null,null,null,null,null,null,null,null,null,null,null,null,null,null,null,null,null,{"$f":"AC293*100","v":100}]
[null,null,null,null,null,null,null,null,null,null,null,null,null,null,null,null,null,null,null,null,null,null,null,null,null,null,null,null,102]
[null,null,null,null,null,null,null,null,null,null,null,null,null,null,null,null,null,null,null,null,null,null,null,null,null,null,null,null,105]
[null,null,null,null,null,null,null,null,null,null,null,null,null,null,null,null,null,null,null,null,null,null,null,null,null,null,null,null,107]
[null,null,null,null,null,null,null,null,null,null,null,null,null,null,null,null,null,null,null,null,null,null,null,null,null,null,null,null,110.00000000000001]
[null,null,null,null,null,null,null,null,null,null,null,null,null,null,null,null,null,null,null,null,null,null,null,null,null,null,null,null,112.99999999999999]
[null,null,null,null,null,null,null,null,null,null,null,null,null,null,null,null,null,null,null,null,null,null,null,null,null,null,null,null,114.99999999999999]
[null,null,null,null,null,null,null,null,null,null,null,null,null,null,null,null,null,null,null,null,null,null,null,null,null,null,null,null,118]
[null,null,null,null,null,null,null,null,null,null,null,null,null,null,null,null,null,null,null,null,null,null,null,null,null,null,null,null,121]
[null,null,null,null,null,null,null,null,null,null,null,null,null,null,null,null,null,null,null,null,null,null,null,null,null,null,null,null,124]
[null,null,null,null,null,null,null,null,null,null,null,null,null,null,null,null,null,null,null,null,null,null,null,null,null,null,null,null,127]
[null,null,null,null,null,null,null,null,null,null,null,null,null,null,null,null,null,null,null,null,null,null,null,null,null,null,null,null,130]
[null,null,null,null,null,null,null,null,null,null,null,null,null,null,null,null,null,null,null,null,null,null,null,null,null,null,null,null,133]
[null,null,null,null,null,null,null,null,null,null,null,null,null,null,null,null,null,null,null,null,null,null,null,null,null,null,null,null,137]
[null,null,null,null,null,null,null,null,null,null,null,null,null,null,null,null,null,null,null,null,null,null,null,null,null,null,null,null,140]
[null,null,null,null,null,null,null,null,null,null,null,null,null,null,null,null,null,null,null,null,null,null,null,null,null,null,null,null,143]
[null,null,null,null,null,null,null,null,null,null,null,null,null,null,null,null,null,null,null,null,null,null,null,null,null,null,null,null,147]
[null,null,null,null,null,null,null,null,null,null,null,null,null,null,null,null,null,null,null,null,null,null,null,null,null,null,null,null,150]
[null,null,null,null,null,null,null,null,null,null,null,null,null,null,null,null,null,null,null,null,null,null,null,null,null,null,null,null,154]
[null,null,null,null,null,null,null,null,null,null,null,null,null,null,null,null,null,null,null,null,null,null,null,null,null,null,null,null,158]
[null,null,null,null,null,null,null,null,null,null,null,null,null,null,null,null,null,null,null,null,null,null,null,null,null,null,null,null,162]
[null,null,null,null,null,null,null,null,null,null,null,null,null,null,null,null,null,null,null,null,null,null,null,null,null,null,null,null,165]
[null,null,null,null,null,null,null,null,null,null,null,null,null,null,null,null,null,null,null,null,null,null,null,null,null,null,null,null,169]
[null,null,null,null,null,null,null,null,null,null,null,null,null,null,null,null,null,null,null,null,null,null,null,null,null,null,null,null,174]
[null,null,null,null,null,null,null,null,null,null,null,null,null,null,null,null,null,null,null,null,null,null,null,null,null,null,null,null,178]
[null,null,null,null,null,null,null,null,null,null,null,null,null,null,null,null,null,null,null,null,null,null,null,null,null,null,null,null,182]
[null,null,null,null,null,null,null,null,null,null,null,null,null,null,null,null,null,null,null,null,null,null,null,null,null,null,null,null,187]
[null,null,null,null,null,null,null,null,null,null,null,null,null,null,null,null,null,null,null,null,null,null,null,null,null,null,null,null,191]
[null,null,null,null,null,null,null,null,null,null,null,null,null,null,null,null,null,null,null,null,null,null,null,null,null,null,null,null,196]
[null,null,null,null,null,null,null,null,null,null,null,null,null,null,null,null,null,null,null,null,null,null,null,null,null,null,null,null,200]
[null,null,null,null,null,null,null,null,null,null,null,null,null,null,null,null,null,null,null,null,null,null,null,null,null,null,null,null,204.99999999999997]
[null,null,null,null,null,null,null,null,null,null,null,null,null,null,null,null,null,null,null,null,null,null,null,null,null,null,null,null,210]
[null,null,null,null,null,null,null,null,null,null,null,null,null,null,null,null,null,null,null,null,null,null,null,null,null,null,null,null,215]
[null,null,null,null,null,null,null,null,null,null,null,null,null,null,null,null,null,null,null,null,null,null,null,null,null,null,null,null,221]
[null,null,null,null,null,null,null,null,null,null,null,null,null,null,null,null,null,null,null,null,null,null,null,null,null,null,null,null,225.99999999999997]
[null,null,null,null,null,null,null,null,null,null,null,null,null,null,null,null,null,null,null,null,null,null,null,null,null,null,null,null,231.99999999999997]
[null,null,null,null,null,null,null,null,null,null,null,null,null,null,null,null,null,null,null,null,null,null,null,null,null,null,null,null,237]
[null,null,null,null,null,null,null,null,null,null,null,null,null,null,null,null,null,null,null,null,null,null,null,null,null,null,null,null,243.00000000000003]
[null,null,null,null,null,null,null,null,null,null,null,null,null,null,null,null,null,null,null,null,null,null,null,null,null,null,null,null,249.00000000000003]
[null,null,null,null,null,null,null,null,null,null,null,null,null,null,null,null,null,null,null,null,null,null,null,null,null,null,null,null,254.99999999999997]
[null,null,null,null,null,null,null,null,null,null,null,null,null,null,null,null,null,null,null,null,null,null,null,null,null,null,null,null,261]
[null,null,null,null,null,null,null,null,null,null,null,null,null,null,null,null,null,null,null,null,null,null,null,null,null,null,null,null,267]
[null,null,null,null,null,null,null,null,null,null,null,null,null,null,null,null,null,null,null,null,null,null,null,null,null,null,null,null,274]
[null,null,null,null,null,null,null,null,null,null,null,null,null,null,null,null,null,null,null,null,null,null,null,null,null,null,null,null,280]
[null,null,null,null,null,null,null,null,null,null,null,null,null,null,null,null,null,null,null,null,null,null,null,null,null,null,null,null,287]
[null,null,null,null,null,null,null,null,null,null,null,null,null,null,null,null,null,null,null,null,null,null,null,null,null,null,null,null,294]
[null,null,null,null,null,null,null,null,null,null,null,null,null,null,null,null,null,null,null,null,null,null,null,null,null,null,null,null,301]
[null,null,null,null,null,null,null,null,null,null,null,null,null,null,null,null,null,null,null,null,null,null,null,null,null,null,null,null,309]
[null,null,null,null,null,null,null,null,null,null,null,null,null,null,null,null,null,null,null,null,null,null,null,null,null,null,null,null,316]
[null,null,null,null,null,null,null,null,null,null,null,null,null,null,null,null,null,null,null,null,null,null,null,null,null,null,null,null,324]
[null,null,null,null,null,null,null,null,null,null,null,null,null,null,null,null,null,null,null,null,null,null,null,null,null,null,null,null,332]
[null,null,null,null,null,null,null,null,null,null,null,null,null,null,null,null,null,null,null,null,null,null,null,null,null,null,null,null,340]
[null,null,null,null,null,null,null,null,null,null,null,null,null,null,null,null,null,null,null,null,null,null,null,null,null,null,null,null,348]
[null,null,null,null,null,null,null,null,null,null,null,null,null,null,null,null,null,null,null,null,null,null,null,null,null,null,null,null,357]
[null,null,null,null,null,null,null,null,null,null,null,null,null,null,null,null,null,null,null,null,null,null,null,null,null,null,null,null,365]
[null,null,null,null,null,null,null,null,null,null,null,null,null,null,null,null,null,null,null,null,null,null,null,null,null,null,null,null,374]
[null,null,null,null,null,null,null,null,null,null,null,null,null,null,null,null,null,null,null,null,null,null,null,null,null,null,null,null,383]
[null,null,null,null,null,null,null,null,null,null,null,null,null,null,null,null,null,null,null,null,null,null,null,null,null,null,null,null,392]
[null,null,null,null,null,null,null,null,null,null,null,null,null,null,null,null,null,null,null,null,null,null,null,null,null,null,null,null,401.99999999999994]
[null,null,null,null,null,null,null,null,null,null,null,null,null,null,null,null,null,null,null,null,null,null,null,null,null,null,null,null,412]
[null,null,null,null,null,null,null,null,null,null,null,null,null,null,null,null,null,null,null,null,null,null,null,null,null,null,null,null,422]
[null,null,null,null,null,null,null,null,null,null,null,null,null,null,null,null,null,null,null,null,null,null,null,null,null,null,null,null,432]
[null,null,null,null,null,null,null,null,null,null,null,null,null,null,null,null,null,null,null,null,null,null,null,null,null,null,null,null,442]
[null,null,null,null,null,null,null,null,null,null,null,null,null,null,null,null,null,null,null,null,null,null,null,null,null,null,null,null,453]
[null,null,null,null,null,null,null,null,null,null,null,null,null,null,null,null,null,null,null,null,null,null,null,null,null,null,null,null,{"$f":"AC357*100","v":463.99999999999994}]
[null,null,null,null,null,null,null,null,null,null,null,null,null,null,null,null,null,null,null,null,null,null,null,null,null,null,null,null,475]
[null,null,null,null,null,null,null,null,null,null,null,null,null,null,null,null,null,null,null,null,null,null,null,null,null,null,null,null,487]
[null,null,null,null,null,null,null,null,null,null,null,null,null,null,null,null,null,null,null,null,null,null,null,null,null,null,null,null,499]
[null,null,null,null,null,null,null,null,null,null,null,null,null,null,null,null,null,null,null,null,null,null,null,null,null,null,null,null,511.00000000000006]
[null,null,null,null,null,null,null,null,null,null,null,null,null,null,null,null,null,null,null,null,null,null,null,null,null,null,null,null,523]
[null,null,null,null,null,null,null,null,null,null,null,null,null,null,null,null,null,null,null,null,null,null,null,null,null,null,null,null,536]
[null,null,null,null,null,null,null,null,null,null,null,null,null,null,null,null,null,null,null,null,null,null,null,null,null,null,null,null,549]
[null,null,null,null,null,null,null,null,null,null,null,null,null,null,null,null,null,null,null,null,null,null,null,null,null,null,null,null,562]
[null,null,null,null,null,null,null,null,null,null,null,null,null,null,null,null,null,null,null,null,null,null,null,null,null,null,null,null,576]
[null,null,null,null,null,null,null,null,null,null,null,null,null,null,null,null,null,null,null,null,null,null,null,null,null,null,null,null,590]
[null,null,null,null,null,null,null,null,null,null,null,null,null,null,null,null,null,null,null,null,null,null,null,null,null,null,null,null,604]
[null,null,null,null,null,null,null,null,null,null,null,null,null,null,null,null,null,null,null,null,null,null,null,null,null,null,null,null,619]
[null,null,null,null,null,null,null,null,null,null,null,null,null,null,null,null,null,null,null,null,null,null,null,null,null,null,null,null,634]
[null,null,null,null,null,null,null,null,null,null,null,null,null,null,null,null,null,null,null,null,null,null,null,null,null,null,null,null,649]
[null,null,null,null,null,null,null,null,null,null,null,null,null,null,null,null,null,null,null,null,null,null,null,null,null,null,null,null,665]
[null,null,null,null,null,null,null,null,null,null,null,null,null,null,null,null,null,null,null,null,null,null,null,null,null,null,null,null,681]
[null,null,null,null,null,null,null,null,null,null,null,null,null,null,null,null,null,null,null,null,null,null,null,null,null,null,null,null,698]
[null,null,null,null,null,null,null,null,null,null,null,null,null,null,null,null,null,null,null,null,null,null,null,null,null,null,null,null,715]
[null,null,null,null,null,null,null,null,null,null,null,null,null,null,null,null,null,null,null,null,null,null,null,null,null,null,null,null,732]
[null,null,null,null,null,null,null,null,null,null,null,null,null,null,null,null,null,null,null,null,null,null,null,null,null,null,null,null,750]
[null,null,null,null,null,null,null,null,null,null,null,null,null,null,null,null,null,null,null,null,null,null,null,null,null,null,null,null,768]
[null,null,null,null,null,null,null,null,null,null,null,null,null,null,null,null,null,null,null,null,null,null,null,null,null,null,null,null,787]
[null,null,null,null,null,null,null,null,null,null,null,null,null,null,null,null,null,null,null,null,null,null,null,null,null,null,null,null,806]
[null,null,null,null,null,null,null,null,null,null,null,null,null,null,null,null,null,null,null,null,null,null,null,null,null,null,null,null,825]
[null,null,null,null,null,null,null,null,null,null,null,null,null,null,null,null,null,null,null,null,null,null,null,null,null,null,null,null,844.99999999999989]
[null,null,null,null,null,null,null,null,null,null,null,null,null,null,null,null,null,null,null,null,null,null,null,null,null,null,null,null,866]
[null,null,null,null,null,null,null,null,null,null,null,null,null,null,null,null,null,null,null,null,null,null,null,null,null,null,null,null,886.99999999999989]
[null,null,null,null,null,null,null,null,null,null,null,null,null,null,null,null,null,null,null,null,null,null,null,null,null,null,null,null,909]
[null,null,null,null,null,null,null,null,null,null,null,null,null,null,null,null,null,null,null,null,null,null,null,null,null,null,null,null,931]
[null,null,null,null,null,null,null,null,null,null,null,null,null,null,null,null,null,null,null,null,null,null,null,null,null,null,null,null,952.99999999999989]
[null,null,null,null,null,null,null,null,null,null,null,null,null,null,null,null,null,null,null,null,null,null,null,null,null,null,null,null,976]
[null,null,null,null,null,null,null,null,null,null,null,null,null,null,null,null,null,null,null,null,null,null,null,null,null,null,null,null,1000]

{"sheet":"MSEL","index":6,"n_rows":47,"n_cols":6,"rows_kept":47,"cut":false,"hidden":true,"merged":[]}
[null,"User Input:"]
[null,"fsw_input",{"$f":"fsw_input","v":800}]
[null,"LL_mode_input",{"$f":"LL_mode_input","v":"Skip-mode"}]
[null,"RAMP",{"$f":"RAMP_sel","v":"RAMP1"}]
[]
[null,"Recommended:"]
[null,"RMSEL_rec",{"$f":"IFERROR(INDEX(MSEL!$B$24:$B$47,A22),\"INVALID INPUTS\")","v":86.6}]
[]
[null,"User Selected:"]
[null,"RMSEL",{"$f":"RMSEL","v":86.6}]
[]
[null,"Calculated:"]
[null,"fsw_select",{"$f":"VLOOKUP(RMSEL,MSEL!$B$24:$F$47,C22,FALSE)","v":800}]
[null,"LL_mode_select",{"$f":"VLOOKUP(RMSEL,MSEL!$B$24:$F$47,D22,FALSE)","v":"Skip-mode"}]
[null,"RAMP_select",{"$f":"VLOOKUP(RMSEL,MSEL!$B$24:$F$47,E22,FALSE)","v":"RAMP1"}]
[null,"f_table",{"$f":"VLOOKUP(RMSEL,MSEL!$B$24:$F$47,F22,FALSE)","v":14}]
[null,"fp_RAMP4",{"$f":"SUMPRODUCT((MSEL[FSW (kHz)]=fsw_input)*(MSEL[RAMP]=D17)*(MSEL[f_table (kHz)]))/2","v":20.3},"RAMP4"]
[null,"fp_RAMP3",{"$f":"SUMPRODUCT((MSEL[FSW (kHz)]=fsw_input)*(MSEL[RAMP]=D18)*(MSEL[f_table (kHz)]))/2","v":18.3},"RAMP3"]
[null,"fp_RAMP2",{"$f":"SUMPRODUCT((MSEL[FSW (kHz)]=fsw_input)*(MSEL[RAMP]=D19)*(MSEL[f_table (kHz)]))/2","v":18.3},"RAMP2"]
[null,"fp_RAMP1",{"$f":"SUMPRODUCT((MSEL[FSW (kHz)]=fsw_input)*(MSEL[RAMP]=D20)*(MSEL[f_table (kHz)]))/2","v":14},"RAMP1"]
[]
[{"$f":"MATCH(1,(C2=MSEL[FSW (kHz)])*(C3=MSEL[Mode])*(C4=MSEL[RAMP]),0)","v":16},{"$f":"COLUMNS($B22:B$22)","v":1},{"$f":"COLUMNS($B22:C$22)","v":2},{"$f":"COLUMNS($B22:D$22)","v":3},{"$f":"COLUMNS($B22:E$22)","v":4},{"$f":"COLUMNS($B22:F$22)","v":5}]
[null,"RMSEL (kΩ)","FSW (kHz)","Mode","RAMP","f_table (kHz)"]
[{"$f":"ROWS($A$24:A24)","v":1},"Connect to AGND",800,"FCCM","RAMP4",{"$f":"IF(Vfb_reg=0.9, 20.3, 26.5)","v":20.3}]
[{"$f":"ROWS($A$24:A25)","v":2},4.99,800,"FCCM","RAMP3",{"$f":"IF(Vfb_reg=0.9, 18.3, 19.9)","v":18.3}]
[{"$f":"ROWS($A$24:A26)","v":3},7.5,800,"FCCM","RAMP2",{"$f":"IF(Vfb_reg=0.9, 18.3, 19.9)","v":18.3}]
[{"$f":"ROWS($A$24:A27)","v":4},10.5,800,"FCCM","RAMP1",{"$f":"IF(Vfb_reg=0.9, 14, 15.3)","v":14}]
[{"$f":"ROWS($A$24:A28)","v":5},13.3,1100,"FCCM","RAMP4",{"$f":"IF(Vfb_reg=0.9, 27.9, 36.4)","v":27.9}]
[{"$f":"ROWS($A$24:A29)","v":6},16.899999999999999,1100,"FCCM","RAMP3",{"$f":"IF(Vfb_reg=0.9, 25.1, 27.4)","v":25.1}]
[{"$f":"ROWS($A$24:A30)","v":7},21,1100,"FCCM","RAMP2",{"$f":"IF(Vfb_reg=0.9, 25.1, 27.4)","v":25.1}]
[{"$f":"ROWS($A$24:A31)","v":8},24.9,1100,"FCCM","RAMP1",{"$f":"IF(Vfb_reg=0.9, 19.3, 21)","v":19.3}]
[{"$f":"ROWS($A$24:A32)","v":9},30.1,1400,"FCCM","RAMP4",{"$f":"IF(Vfb_reg=0.9, 35.5, 46.4)","v":35.5}]
[{"$f":"ROWS($A$24:A33)","v":10},35.700000000000003,1400,"FCCM","RAMP3",{"$f":"IF(Vfb_reg=0.9, 31.9, 34.9)","v":31.9}]
[{"$f":"ROWS($A$24:A34)","v":11},42.2,1400,"FCCM","RAMP2",{"$f":"IF(Vfb_reg=0.9, 31.9, 34.9)","v":31.9}]
[{"$f":"ROWS($A$24:A35)","v":12},48.7,1400,"FCCM","RAMP1",{"$f":"IF(Vfb_reg=0.9, 24.5, 26.8)","v":24.5}]
[{"$f":"ROWS($A$24:A36)","v":13},56.2,800,"Skip-mode","RAMP4",{"$f":"IF(Vfb_reg=0.9, 20.3, 26.5)","v":20.3}]
[{"$f":"ROWS($A$24:A37)","v":14},64.900000000000006,800,"Skip-mode","RAMP3",{"$f":"IF(Vfb_reg=0.9, 18.3, 19.9)","v":18.3}]
[{"$f":"ROWS($A$24:A38)","v":15},75,800,"Skip-mode","RAMP2",{"$f":"IF(Vfb_reg=0.9, 18.3, 19.9)","v":18.3}]
[{"$f":"ROWS($A$24:A39)","v":16},86.6,800,"Skip-mode","RAMP1",{"$f":"IF(Vfb_reg=0.9, 14, 15.3)","v":14}]
[{"$f":"ROWS($A$24:A40)","v":17},102,1100,"Skip-mode","RAMP4",{"$f":"IF(Vfb_reg=0.9, 27.9, 36.4)","v":27.9}]
[{"$f":"ROWS($A$24:A41)","v":18},118,1100,"Skip-mode","RAMP3",{"$f":"IF(Vfb_reg=0.9, 25.1, 27.4)","v":25.1}]
[{"$f":"ROWS($A$24:A42)","v":19},137,1100,"Skip-mode","RAMP2",{"$f":"IF(Vfb_reg=0.9, 25.1, 27.4)","v":25.1}]
[{"$f":"ROWS($A$24:A43)","v":20},158,1100,"Skip-mode","RAMP1",{"$f":"IF(Vfb_reg=0.9, 19.3, 21)","v":19.3}]
[{"$f":"ROWS($A$24:A44)","v":21},182,1400,"Skip-mode","RAMP4",{"$f":"IF(Vfb_reg=0.9, 35.5, 46.4)","v":35.5}]
[{"$f":"ROWS($A$24:A45)","v":22},210,1400,"Skip-mode","RAMP3",{"$f":"IF(Vfb_reg=0.9, 31.9, 34.9)","v":31.9}]
[{"$f":"ROWS($A$24:A46)","v":23},243,1400,"Skip-mode","RAMP2",{"$f":"IF(Vfb_reg=0.9, 31.9, 34.9)","v":31.9}]
[{"$f":"ROWS($A$24:A47)","v":24},">= 280 (FLOAT)",1400,"Skip-mode","RAMP1",{"$f":"IF(Vfb_reg=0.9, 24.5, 26.8)","v":24.5}]

{"sheet":"Std. R and C Values","index":7,"n_rows":99,"n_cols":17,"rows_kept":99,"cut":false,"hidden":true,"merged":[[2,4,2,5],[2,6,2,7],[9,4,9,5],[22,4,22,5],[47,4,47,5]]}
["Hide Sheet"]
[null,null,null,null,"Std. Resistors",null,null,null,null,"Capacitors"]
[null,"Enter resistor value",124,null,"E6",null,"E96",null,null,"Cap value",8,"pF"]
[null,null,null,null,100,150,100,102,null,null,{"$f":"IF(K3*10^12<10000,IF((10^(LOG(K3*10^12)-INT(LOG(K3*10^12))))-VLOOKUP((10^(LOG(K3*10^12)-INT(LOG(K3*10^12)))),c_s1:C_f1,1)<VLOOKUP((10^(LOG(K3*10^12)-INT(LOG(K3*10^12)))),c_s1:C_f1,2)-(10^(LOG(K3*10^12)-INT(LOG(K3*10^12)))),VLOOKUP((10^(LOG(K3*10^12)-INT(LOG(K3*10^12)))),c_s1:C_f1,1),VLOOKUP((10^(LOG(K3*10^12)-INT(LOG(K3*10^12)))),c_s1:C_f1,2))*10^INT(LOG(K3*10^12)),IF((10^(LOG(K3*10^12)-INT(LOG(K3*10^12))))-VLOOKUP((10^(LOG(K3*10^12)-INT(LOG(K3*10^12)))),C_s2:C_f2,1)<VLOOKUP((10^(LOG(K3*10^12)-INT(LOG(K3*10^12)))),C_s2:C_f2,2)-(10^(LOG(K3*10^12)-INT(LOG(K3*10^12)))),VLOOKUP((10^(LOG(K3*10^12)-INT(LOG(K3*10^12)))),C_s2:C_f2,1),VLOOKUP((10^(LOG(K3*10^12)-INT(LOG(K3*10^12)))),C_s2:C_f2,2))*10^INT(LOG(K3*10^12)))*10^-12","v":6.8},"pF"]
[null,"Closest E6 Value",{"$f":"(IF((10^(LOG(C3)-INT(LOG(C3)))*100)-VLOOKUP((10^(LOG(C3)-INT(LOG(C3)))*100),E6_s:E6_f,1)<VLOOKUP((10^(LOG(C3)-INT(LOG(C3)))*100),E6_s:E6_f,2)-(10^(LOG(C3)-INT(LOG(C3)))*100),VLOOKUP((10^(LOG(C3)-INT(LOG(C3)))*100),E6_s:E6_f,1),VLOOKUP((10^(LOG(C3)-INT(LOG(C3)))*100),E6_s:E6_f,2)))*10^INT(LOG(C3))/100","v":100},null,150,220,102,105]
[null,"Closest E12 Value",{"$f":"(IF((10^(LOG(C3)-INT(LOG(C3)))*100)-VLOOKUP((10^(LOG(C3)-INT(LOG(C3)))*100),E12_s:E12_f,1)<VLOOKUP((10^(LOG(C3)-INT(LOG(C3)))*100),E12_s:E12_f,2)-(10^(LOG(C3)-INT(LOG(C3)))*100),VLOOKUP((10^(LOG(C3)-INT(LOG(C3)))*100),E12_s:E12_f,1),VLOOKUP((10^(LOG(C3)-INT(LOG(C3)))*100),E12_s:E12_f,2)))*10^INT(LOG(C3))/100","v":120},null,220,330,105,107,null,"C values up to 10nF"]
[null,"Closest E24 Value",{"$f":"(IF((10^(LOG(C3)-INT(LOG(C3)))*100)-VLOOKUP((10^(LOG(C3)-INT(LOG(C3)))*100),E24_s:E24_f,1)<VLOOKUP((10^(LOG(C3)-INT(LOG(C3)))*100),E24_s:E24_f,2)-(10^(LOG(C3)-INT(LOG(C3)))*100),VLOOKUP((10^(LOG(C3)-INT(LOG(C3)))*100),E24_s:E24_f,1),VLOOKUP((10^(LOG(C3)-INT(LOG(C3)))*100),E24_s:E24_f,2)))*10^INT(LOG(C3))/100","v":120},null,330,470,107,110,null,1,1.2,{"$f":"IF((10^(LOG(K3)-INT(LOG(K3))))-VLOOKUP((10^(LOG(K3)-INT(LOG(K3)))),c_s1:C_f1,1)<VLOOKUP((10^(LOG(K3)-INT(LOG(K3)))),c_s1:C_f1,2)-(10^(LOG(K3)-INT(LOG(K3)))),VLOOKUP((10^(LOG(K3)-INT(LOG(K3)))),c_s1:C_f1,1),VLOOKUP((10^(LOG(K3)-INT(LOG(K3)))),c_s1:C_f1,2))","v":8.1999999999999993}]
[null,"Closest E48 Value",{"$f":"(IF((10^(LOG(C3)-INT(LOG(C3)))*100)-VLOOKUP((10^(LOG(C3)-INT(LOG(C3)))*100),E48_s:E48_f,1)<VLOOKUP((10^(LOG(C3)-INT(LOG(C3)))*100),E48_s:E48_f,2)-(10^(LOG(C3)-INT(LOG(C3)))*100),VLOOKUP((10^(LOG(C3)-INT(LOG(C3)))*100),E48_s:E48_f,1),VLOOKUP((10^(LOG(C3)-INT(LOG(C3)))*100),E48_s:E48_f,2)))*10^INT(LOG(C3))/100","v":127},null,470,680,110,113,null,1.2,1.5]
[null,"Closest E96 Value",{"$f":"(IF((10^(LOG(C3)-INT(LOG(C3)))*100)-VLOOKUP((10^(LOG(C3)-INT(LOG(C3)))*100),E96_s:E96_f,1)<VLOOKUP((10^(LOG(C3)-INT(LOG(C3)))*100),E96_s:E96_f,2)-(10^(LOG(C3)-INT(LOG(C3)))*100),VLOOKUP((10^(LOG(C3)-INT(LOG(C3)))*100),E96_s:E96_f,1),VLOOKUP((10^(LOG(C3)-INT(LOG(C3)))*100),E96_s:E96_f,2)))*10^INT(LOG(C3))/100","v":124},null,680,1000,113,115,null,1.5,1.8,null,null,null,null,"Notes:","If I use the value in column K it rounds up"]
[null,null,null,null,"E12",null,115,118,null,1.8,2.2000000000000002,null,null,null,null,null,"If I use the value in column J it rounds down"]
[null,null,null,null,100,120,118,121,null,2.2000000000000002,2.7]
[null,null,null,null,120,150,121,124,null,2.7,3.3]
[null,null,null,null,150,180,124,127,null,3.3,3.9]
[null,null,null,null,180,220,127,130,null,3.9,4.7]
[null,null,null,null,220,270,130,133,null,4.7,5.6]
[null,null,null,null,270,330,133,137,null,5.6,6.8]
[null,null,null,null,330,390,137,140,null,6.8,8.1999999999999993]
[null,null,null,null,390,470,140,143,null,8.1999999999999993,10]
[null,null,null,null,470,560,143,147,null,"C values greater than 10nF"]
[null,null,null,null,560,680,147,150,null,1,1.5,{"$f":"IF((10^(LOG(K3)-INT(LOG(K3))))-VLOOKUP((10^(LOG(K3)-INT(LOG(K3)))),C_s2:C_f2,1)<VLOOKUP((10^(LOG(K3)-INT(LOG(K3)))),C_s2:C_f2,2)-(10^(LOG(K3)-INT(LOG(K3)))),VLOOKUP((10^(LOG(K3)-INT(LOG(K3)))),C_s2:C_f2,1),VLOOKUP((10^(LOG(K3)-INT(LOG(K3)))),C_s2:C_f2,2))","v":6.8}]
[null,null,null,null,680,820,150,154,null,1.5,2.2000000000000002]
[null,null,null,null,820,1000,154,158,null,2.2000000000000002,3.3]
[null,null,null,null,"E24",null,158,162,null,3.3,4.7]
[null,null,null,null,100,110,162,165,null,4.7,6.8]
[null,null,null,null,110,120,165,169,null,6.8,10]
[null,null,null,null,120,130,169,174]
[null,null,null,null,130,150,174,178]
[null,null,null,null,150,160,178,182]
[null,null,null,null,160,180,182,187]
[null,null,null,null,180,200,187,191]
[null,null,null,null,200,220,191,196]
[null,null,null,null,220,240,196,200]
[null,null,null,null,240,270,200,205]
[null,null,null,null,270,300,205,210]
[null,null,null,null,300,330,210,215]
[null,null,null,null,330,360,215,221]
[null,null,null,null,360,390,221,226]
[null,null,null,null,390,430,226,232]
[null,null,null,null,430,470,232,237]
[null,null,null,null,470,510,237,243]
[null,null,null,null,510,560,243,249]
[null,null,null,null,560,620,249,255]
[null,null,null,null,620,680,255,261]
[null,null,null,null,680,750,261,267]
[null,null,null,null,750,820,267,274]
[null,null,null,null,820,910,274,280]
[null,null,null,null,910,1000,280,287]
[null,null,null,null,"E48",null,287,294]
[null,null,null,null,100,105,294,301]
[null,null,null,null,105,110,301,309]
[null,null,null,null,110,115,309,316]
[null,null,null,null,115,121,316,324]
[null,null,null,null,121,127,324,332]
[null,null,null,null,127,133,332,340]
[null,null,null,null,133,140,340,348]
[null,null,null,null,140,147,348,357]
[null,null,null,null,147,154,357,365]
[null,null,null,null,154,162,365,374]
[null,null,null,null,162,169,374,383]
[null,null,null,null,169,178,383,392]
[null,null,null,null,178,187,392,402]
[null,null,null,null,187,196,402,412]
[null,null,null,null,196,205,412,422]
[null,null,null,null,205,215,422,432]
[null,null,null,null,215,226,432,442]
[null,null,null,null,226,237,442,453]
[null,null,null,null,237,249,453,464]
[null,null,null,null,249,261,464,475]
[null,null,null,null,261,274,475,487]
[null,null,null,null,274,287,487,499]
[null,null,null,null,287,301,499,511]
[null,null,null,null,301,316,511,523]
[null,null,null,null,316,332,523,536]
[null,null,null,null,332,348,536,549]
[null,null,null,null,348,365,549,562]
[null,null,null,null,365,383,562,576]
[null,null,null,null,383,402,576,590]
[null,null,null,null,402,422,590,604]
[null,null,null,null,422,442,604,619]
[null,null,null,null,442,464,619,634]
[null,null,null,null,464,487,634,649]
[null,null,null,null,487,511,649,665]
[null,null,null,null,511,536,665,681]
[null,null,null,null,536,562,681,698]
[null,null,null,null,562,590,698,715]
[null,null,null,null,590,619,715,732]
[null,null,null,null,619,649,732,750]
[null,null,null,null,649,681,750,768]
[null,null,null,null,681,715,768,787]
[null,null,null,null,715,750,787,806]
[null,null,null,null,750,787,806,825]
[null,null,null,null,787,825,825,845]
[null,null,null,null,825,866,845,866]
[null,null,null,null,866,909,866,887]
[null,null,null,null,909,953,887,909]
[null,null,null,null,953,1000,909,931]
[null,null,null,null,null,null,931,953]
[null,null,null,null,null,null,953,976]
[null,null,null,null,null,null,976,1000]

{"sheet":"Extra","index":8,"n_rows":6,"n_cols":2,"rows_kept":6,"cut":false,"hidden":true,"merged":[]}
[]
[]
[null,"Validation Options"]
[null,"Open"]
[null,"Complete"]
[null,"Not Applicable"]

{"sheet":"About","index":9,"n_rows":36,"n_cols":13,"rows_kept":36,"cut":false,"hidden":false,"merged":[[38,2,38,12],[1,5,1,12],[34,2,34,12],[35,2,35,12],[36,2,36,12],[37,2,37,12]]}
[]
[null,null,null,null,null,"© Copyright 2024 Texas Instruments Incorporated. All rights reserved."]
[]
[null,"About"]
[null,"Version Number","1.0.0",null,null,null,null,null,null,null,null,null,"Table of Contents"]
[]
[]
[]
[]
[]
[]
[]
[]
[]
[]
[]
[]
[]
[]
[]
[]
[]
[]
[]
[]
[]
[]
[]
[]
[]
[]
[]
[]
[null,"Version History"]
[null,"Version","Change List Description"]
[null,"1.0.0","Initial Release"]

{"sheet":"Help","index":10,"n_rows":21,"n_cols":11,"rows_kept":21,"cut":false,"hidden":false,"merged":[[7,1,7,10],[5,1,5,10],[1,4,1,10],[32,2,32,10],[33,2,33,10],[9,1,9,10],[14,1,14,10],[18,1,18,10]]}
[]
[null,null,null,null,"© Copyright 2024 Texas Instruments Incorporated. All rights reserved."]
[]
[null,"Help"]
[null,null,null,null,null,null,null,null,null,null,"Table of Contents"]
[null,"For any futher assistance on this tool, please post your question in the following forum - E2E Power Management Forum"]
[]
[null,"Getting Started with this tool?"]
[]
[null,"1. Reference the product datasheet, found at the URLs below, for information about the particular device."]
[]
[null,null,"TPS54KB2x:","https://www.ti.com/product/TPS54KB20"]
[null,null,"TPS54KC23:","https://www.ti.com/product/TPS54KC23"]
[]
[null,"2. Go to the Table of Contents for tool descriptions and links to specific worksheets."]
[]
[null,null,"Link:","Table of Contents"]
[]
[null,"3. Use the \"Key\" on each worksheet for guidance. The required inputs typically follow the convention below:"]
[]
[null,null,null," = Input"]